DepartmentFamily,Entity,Date,ExpenseType,ExpenseArea,Supplier,TransactionNumber,Amount,VATRegistrationNo
BIS,The Insolvency Service,25/06/2014,Postage,OFFICIAL RECEIVER SERVICES                                                                          ,ABACUS EXPRESS,BA0000276672,74.71,417924146
BIS,The Insolvency Service,25/06/2014,Postage,OFFICIAL RECEIVER SERVICES                                                                          ,ABACUS EXPRESS,BA0000276673,91.91,417924146
BIS,The Insolvency Service,11/06/2014,Conferences,PEOPLE & CAPABILITY                                                                                 ,ABBEY COMMUNITY SERVICES LTD,BA0000276331,"1,629.31",905362733
BIS,The Insolvency Service,25/06/2014,Conferences,INVESTIGATIONS & ENFORCEMENT                                                                        ,ABBEY COMMUNITY SERVICES LTD,BA0000276629,379.44,905362733
BIS,The Insolvency Service,01/06/2014,Travel and Subsistence,ESTATES,ABERAFAN HOTEL LTD                                          ,BA0000276412,74.00,
BIS,The Insolvency Service,18/06/2014,Employee Related Costs,PEOPLE & CAPABILITY                                                                                 ,ADVANCE SEATING DESIGNS,BA0000276568,27.00,
BIS,The Insolvency Service,18/06/2014,Employee Related Costs,PEOPLE & CAPABILITY                                                                                 ,ADVANCE SEATING DESIGNS,BA0000276568,36.60,
BIS,The Insolvency Service,18/06/2014,Employee Related Costs,PEOPLE & CAPABILITY                                                                                 ,ADVANCE SEATING DESIGNS,BA0000276568,49.50,
BIS,The Insolvency Service,18/06/2014,Employee Related Costs,PEOPLE & CAPABILITY                                                                                 ,ADVANCE SEATING DESIGNS,BA0000276568,638.56,
BIS,The Insolvency Service,02/06/2014,Agency Workers,FINANCE AND COMMERCIAL,ALLEN LANE LIMITED,BA0000275948,"8,473.36",
BIS,The Insolvency Service,02/06/2014,Agency Workers,FINANCE AND COMMERCIAL,ALLEN LANE LIMITED,BA0000275950,"1,986.70",
BIS,The Insolvency Service,02/06/2014,Agency Workers,FINANCE AND COMMERCIAL,ALLEN LANE LIMITED,BA0000275951,"2,675.52",
BIS,The Insolvency Service,02/06/2014,Agency Workers,FINANCE AND COMMERCIAL,ALLEN LANE LIMITED,BA0000275956,"2,386.86",
BIS,The Insolvency Service,03/06/2014,Agency Workers,FINANCE AND COMMERCIAL                                                                              ,ALLEN LANE LIMITED,BA0000276016,"1,986.70",
BIS,The Insolvency Service,09/06/2014,Agency Workers,FINANCE AND COMMERCIAL,ALLEN LANE LIMITED,BA0000276244,"1,909.49",
BIS,The Insolvency Service,10/06/2014,Agency Workers,FINANCE AND COMMERCIAL,ALLEN LANE LIMITED,BA0000276282,"1,605.31",
BIS,The Insolvency Service,10/06/2014,Agency Workers,FINANCE AND COMMERCIAL,ALLEN LANE LIMITED,BA0000276283,"2,648.93",
BIS,The Insolvency Service,13/06/2014,Agency Workers,FINANCE AND COMMERCIAL,ALLEN LANE LIMITED,BA0000276409,"3,311.16",
BIS,The Insolvency Service,13/06/2014,Agency Workers,FINANCE AND COMMERCIAL,ALLEN LANE LIMITED,BA0000276410,"2,675.52",
BIS,The Insolvency Service,16/06/2014,Agency Workers,FINANCE AND COMMERCIAL,ALLEN LANE LIMITED,BA0000276461,"1,909.49",
BIS,The Insolvency Service,30/06/2014,Agency Workers,FINANCE AND COMMERCIAL,ALLEN LANE LIMITED,BA0000276837,993.35,
BIS,The Insolvency Service,30/06/2014,Agency Workers,FINANCE AND COMMERCIAL,ALLEN LANE LIMITED,BA0000276820,"2,675.52",
BIS,The Insolvency Service,30/06/2014,Agency Workers,FINANCE AND COMMERCIAL,ALLEN LANE LIMITED,BA0000276821,"2,980.04",
BIS,The Insolvency Service,30/06/2014,Agency Workers,FINANCE AND COMMERCIAL,ALLEN LANE LIMITED,BA0000276861,"2,675.52",
BIS,The Insolvency Service,01/06/2014,Employee Related Costs,PEOPLE & CAPABILITY                                                                                 ,AMAZON.CO.UK LTD,BA0000276412,20.53,727255821
BIS,The Insolvency Service,01/06/2014,Employee Related Costs,PEOPLE & CAPABILITY                                                                                 ,AMAZON.CO.UK LTD,BA0000276412,26.08,727255821
BIS,The Insolvency Service,01/06/2014,Employee Related Costs,PEOPLE & CAPABILITY                                                                                 ,AMAZON.CO.UK LTD,BA0000276412,28.21,727255821
BIS,The Insolvency Service,01/06/2014,Office Supplies and Services,FINANCE AND COMMERCIAL                                                                              ,AMAZON.CO.UK LTD,BA0000276412,14.94,727255821
BIS,The Insolvency Service,01/06/2014,Office Supplies and Services,INFORMATION TECHNOLOGY                                                                              ,AMAZON.CO.UK LTD,BA0000276412,78.00,727255821
BIS,The Insolvency Service,01/06/2014,Office Supplies and Services,FINANCE AND COMMERCIAL                                                                              ,AMAZON.CO.UK LTD,BA0000276412,17.50,727255821
BIS,The Insolvency Service,01/06/2014,Office Supplies and Services,FINANCE AND COMMERCIAL                                                                              ,AMAZON.CO.UK LTD,BA0000276412,33.80,727255821
BIS,The Insolvency Service,01/06/2014,Office Supplies and Services,FINANCE AND COMMERCIAL                                                                              ,AMAZON.CO.UK LTD,BA0000276412,29.99,727255821
BIS,The Insolvency Service,01/06/2014,Office Supplies and Services,FINANCE AND COMMERCIAL                                                                              ,AMAZON.CO.UK LTD,BA0000276412,21.09,727255821
BIS,The Insolvency Service,01/06/2014,Office Supplies and Services,FINANCE AND COMMERCIAL                                                                              ,AMAZON.CO.UK LTD,BA0000276412,57.91,727255821
BIS,The Insolvency Service,01/06/2014,Office Supplies and Services,ESTATES,AMAZON.CO.UK LTD,BA0000276412,48.91,727255821
BIS,The Insolvency Service,01/06/2014,Office Supplies and Services,FINANCE AND COMMERCIAL                                                                              ,AMAZON.CO.UK LTD,BA0000276412,99.71,727255821
BIS,The Insolvency Service,01/06/2014,Office Supplies and Services,FINANCE AND COMMERCIAL,AMAZON.CO.UK LTD,BA0000276412,48.02,727255821
BIS,The Insolvency Service,01/06/2014,Office Supplies and Services,FINANCE AND COMMERCIAL                                                                              ,AMAZON.CO.UK LTD,BA0000276412,51.89,727255821
BIS,The Insolvency Service,01/06/2014,Office Supplies and Services,INVESTIGATIONS & ENFORCEMENT                                                                        ,AMAZON.CO.UK LTD,BA0000276412,74.99,727255821
BIS,The Insolvency Service,01/06/2014,Office Supplies and Services,CUSTOMER AND COMMUNICATIONS                                                                         ,AMAZON.CO.UK LTD,BA0000276412,14.37,727255821
BIS,The Insolvency Service,01/06/2014,Office Supplies and Services,FINANCE AND COMMERCIAL                                                                              ,AMAZON.CO.UK LTD,BA0000276412,14.37,727255821
BIS,The Insolvency Service,01/06/2014,Postage,FINANCE AND COMMERCIAL                                                                              ,AMAZON.CO.UK LTD,BA0000276412,47.95,727255821
BIS,The Insolvency Service,01/06/2014,Telecoms,FINANCE AND COMMERCIAL                                                                              ,AMAZON.CO.UK LTD,BA0000276412,147.19,727255821
BIS,The Insolvency Service,01/06/2014,Telecoms,FINANCE AND COMMERCIAL                                                                              ,AMAZON.CO.UK LTD,BA0000276412,392.50,727255821
BIS,The Insolvency Service,01/06/2014,Office Supplies and Services,OFFICIAL RECEIVER SERVICES                                                                          ,AMMERHURST LTD,BA0000276412,22.68,231097780
BIS,The Insolvency Service,01/06/2014,Office Supplies and Services,CUSTOMER AND COMMUNICATIONS                                                                         ,AMMERHURST LTD,BA0000276412,15.50,231097780
BIS,The Insolvency Service,10/06/2014,Insolvency Case Related Costs,OFFICIAL RECEIVER SERVICES                                                                          ,ANGLO EUROPEAN PRIVATE DETECTIVES,BA0000276288,648.00,451474257
BIS,The Insolvency Service,10/06/2014,Investigation and Enforcement Costs,INVESTIGATIONS & ENFORCEMENT                                                                        ,ANGLO EUROPEAN PRIVATE DETECTIVES,BA0000276288,400.00,451474257
BIS,The Insolvency Service,27/06/2014,Investigation and Enforcement Costs,INVESTIGATIONS & ENFORCEMENT                                                                        ,ANGLO EUROPEAN PRIVATE DETECTIVES,BA0000276781,270.00,451474257
BIS,The Insolvency Service,01/06/2014,Travel and Subsistence,PEOPLE & CAPABILITY                                                                                 ,APCOA CONNECT - FGW                                         ,BA0000276412,8.20,
BIS,The Insolvency Service,05/06/2014,Investigation and Enforcement Costs,INVESTIGATIONS & ENFORCEMENT                                                                        ,APL ACCOUNTANTS LLP,BA0000276162,"2,113.75",854660115
BIS,The Insolvency Service,05/06/2014,Investigation and Enforcement Costs,INVESTIGATIONS & ENFORCEMENT                                                                        ,APL ACCOUNTANTS LLP,BA0000276163,"1,353.75",854660115
BIS,The Insolvency Service,01/06/2014,Accommodation,BUSINESS SERVICES DIRECTORATE                                                                       ,ASDA SUPERSTORES,BA0000276412,1.70,
BIS,The Insolvency Service,06/06/2014,Computer and IT Systems,INFORMATION TECHNOLOGY                                                                              ,ATOS IT SERVICES UK LTD,BA0000276171,"900,000.00",
BIS,The Insolvency Service,06/06/2014,Computer and IT Systems,INFORMATION TECHNOLOGY                                                                              ,ATOS IT SERVICES UK LTD,BA0000276174,"190,000.00",
BIS,The Insolvency Service,30/06/2014,Computer and IT Systems,INFORMATION TECHNOLOGY                                                                              ,ATOS IT SERVICES UK LTD,BA0000276849,840.00,
BIS,The Insolvency Service,01/06/2014,Training Costs,PEOPLE & CAPABILITY                                                                                 ,B I F M,BA0000276412,227.00,
BIS,The Insolvency Service,02/06/2014,Agency Workers,PROJECTS                                                                                            ,BADENOCH & CLARK,BA0000275958,"2,640.00",232347975
BIS,The Insolvency Service,06/06/2014,Agency Workers,INFORMATION TECHNOLOGY                                                                              ,BADENOCH & CLARK,BA0000276165,"4,443.34",232347975
BIS,The Insolvency Service,06/06/2014,Agency Workers,INFORMATION TECHNOLOGY                                                                              ,BADENOCH & CLARK,BA0000276165,"3,947.82",232347975
BIS,The Insolvency Service,06/06/2014,Agency Workers,INVESTIGATIONS & ENFORCEMENT                                                                        ,BADENOCH & CLARK,BA0000276165,"4,334.20",232347975
BIS,The Insolvency Service,06/06/2014,Agency Workers,INVESTIGATIONS & ENFORCEMENT                                                                        ,BADENOCH & CLARK,BA0000276165,"6,090.42",232347975
BIS,The Insolvency Service,06/06/2014,Agency Workers,INVESTIGATIONS & ENFORCEMENT                                                                        ,BADENOCH & CLARK,BA0000276165,"12,892.85",232347975
BIS,The Insolvency Service,11/06/2014,Agency Workers,INFORMATION TECHNOLOGY                                                                              ,BADENOCH & CLARK,BA0000276301,"2,183.76",232347975
BIS,The Insolvency Service,11/06/2014,Agency Workers,INFORMATION TECHNOLOGY                                                                              ,BADENOCH & CLARK,BA0000276302,"2,183.76",232347975
BIS,The Insolvency Service,11/06/2014,Agency Workers,INFORMATION TECHNOLOGY                                                                              ,BADENOCH & CLARK,BA0000276303,"1,310.26",232347975
BIS,The Insolvency Service,11/06/2014,Agency Workers,INFORMATION TECHNOLOGY                                                                              ,BADENOCH & CLARK,BA0000276304,"2,183.76",232347975
BIS,The Insolvency Service,11/06/2014,Agency Workers,INFORMATION TECHNOLOGY                                                                              ,BADENOCH & CLARK,BA0000276305,"2,183.76",232347975
BIS,The Insolvency Service,11/06/2014,Agency Workers,INFORMATION TECHNOLOGY                                                                              ,BADENOCH & CLARK,BA0000276306,"1,747.01",232347975
BIS,The Insolvency Service,11/06/2014,Agency Workers,INFORMATION TECHNOLOGY                                                                              ,BADENOCH & CLARK,BA0000276307,"2,183.76",232347975
BIS,The Insolvency Service,11/06/2014,Agency Workers,INFORMATION TECHNOLOGY                                                                              ,BADENOCH & CLARK,BA0000276308,"2,183.76",232347975
BIS,The Insolvency Service,11/06/2014,Agency Workers,INFORMATION TECHNOLOGY                                                                              ,BADENOCH & CLARK,BA0000276309,"2,183.76",232347975
BIS,The Insolvency Service,11/06/2014,Agency Workers,INFORMATION TECHNOLOGY                                                                              ,BADENOCH & CLARK,BA0000276310,"2,183.76",232347975
BIS,The Insolvency Service,11/06/2014,Agency Workers,INFORMATION TECHNOLOGY                                                                              ,BADENOCH & CLARK,BA0000276311,"2,183.76",232347975
BIS,The Insolvency Service,11/06/2014,Agency Workers,INFORMATION TECHNOLOGY                                                                              ,BADENOCH & CLARK,BA0000276312,"2,183.76",232347975
BIS,The Insolvency Service,11/06/2014,Agency Workers,INFORMATION TECHNOLOGY                                                                              ,BADENOCH & CLARK,BA0000276313,"1,747.01",232347975
BIS,The Insolvency Service,11/06/2014,Agency Workers,INFORMATION TECHNOLOGY                                                                              ,BADENOCH & CLARK,BA0000276314,"2,183.76",232347975
BIS,The Insolvency Service,11/06/2014,Agency Workers,INFORMATION TECHNOLOGY                                                                              ,BADENOCH & CLARK,BA0000276315,"1,747.01",232347975
BIS,The Insolvency Service,11/06/2014,Agency Workers,INFORMATION TECHNOLOGY                                                                              ,BADENOCH & CLARK,BA0000276316,"1,310.26",232347975
BIS,The Insolvency Service,11/06/2014,Agency Workers,INFORMATION TECHNOLOGY                                                                              ,BADENOCH & CLARK,BA0000276317,"2,183.76",232347975
BIS,The Insolvency Service,11/06/2014,Agency Workers,INFORMATION TECHNOLOGY                                                                              ,BADENOCH & CLARK,BA0000276318,"2,183.76",232347975
BIS,The Insolvency Service,11/06/2014,Agency Workers,INFORMATION TECHNOLOGY                                                                              ,BADENOCH & CLARK,BA0000276319,"2,183.76",232347975
BIS,The Insolvency Service,13/06/2014,Agency Workers,FINANCE AND COMMERCIAL                                                                              ,BADENOCH & CLARK,BA0000276448,744.00,232347975
BIS,The Insolvency Service,25/06/2014,Agency Workers,FINANCE AND COMMERCIAL                                                                              ,BADENOCH & CLARK,BA0000276630,930.00,232347975
BIS,The Insolvency Service,25/06/2014,Agency Workers,FINANCE AND COMMERCIAL                                                                              ,BADENOCH & CLARK,BA0000276631,930.00,232347975
BIS,The Insolvency Service,27/06/2014,Agency Workers,FINANCE AND COMMERCIAL                                                                              ,BADENOCH & CLARK,BA0000276692,"3,866.64",232347975
BIS,The Insolvency Service,27/06/2014,Agency Workers,FINANCE AND COMMERCIAL                                                                              ,BADENOCH & CLARK,BA0000276693,"3,866.64",232347975
BIS,The Insolvency Service,27/06/2014,Agency Workers,FINANCE AND COMMERCIAL                                                                              ,BADENOCH & CLARK,BA0000276694,"3,866.64",232347975
BIS,The Insolvency Service,27/06/2014,Agency Workers,FINANCE AND COMMERCIAL                                                                              ,BADENOCH & CLARK,BA0000276695,"3,866.64",232347975
BIS,The Insolvency Service,30/06/2014,Agency Workers,FINANCE AND COMMERCIAL                                                                              ,BADENOCH & CLARK,BA0000276830,930.00,232347975
BIS,The Insolvency Service,09/06/2014,Computer and IT Systems,BUSINESS SERVICES DIRECTORATE                                                                       ,BADENOCH & CLARK,BA0000276247,"2,640.00",232347975
BIS,The Insolvency Service,25/06/2014,Computer and IT Systems,BUSINESS SERVICES DIRECTORATE                                                                       ,BADENOCH & CLARK,BA0000276647,"3,300.00",232347975
BIS,The Insolvency Service,25/06/2014,Computer and IT Systems,BUSINESS SERVICES DIRECTORATE                                                                       ,BADENOCH & CLARK,BA0000276648,"3,300.00",232347975
BIS,The Insolvency Service,27/06/2014,Computer and IT Systems,INFORMATION TECHNOLOGY                                                                              ,BADENOCH & CLARK,BA0000276756,161.74,232347975
BIS,The Insolvency Service,27/06/2014,Computer and IT Systems,INFORMATION TECHNOLOGY                                                                              ,BADENOCH & CLARK,BA0000276696,"1,132.12",232347975
BIS,The Insolvency Service,30/06/2014,Computer and IT Systems,BUSINESS SERVICES DIRECTORATE                                                                       ,BADENOCH & CLARK,BA0000276826,"3,300.00",232347975
BIS,The Insolvency Service,12/06/2014,Investigation and Enforcement Costs,INVESTIGATIONS & ENFORCEMENT                                                                        ,BAKER TILLY,BA0000276355,"3,714.68",890965570
BIS,The Insolvency Service,12/06/2014,Investigation and Enforcement Costs,INVESTIGATIONS & ENFORCEMENT                                                                        ,BAKER TILLY,BA0000276356,"2,284.91",890965570
BIS,The Insolvency Service,09/06/2014,Accommodation,ESTATES,BANNER BUSINESS SERVICES Ltd.,BA0000276216,11.70,731860439
BIS,The Insolvency Service,09/06/2014,Accommodation,ESTATES,BANNER BUSINESS SERVICES Ltd.,BA0000276216,16.56,731860439
BIS,The Insolvency Service,09/06/2014,Accommodation,ESTATES,BANNER BUSINESS SERVICES Ltd.,BA0000276216,18.48,731860439
BIS,The Insolvency Service,09/06/2014,Accommodation,ESTATES,BANNER BUSINESS SERVICES Ltd.,BA0000276216,20.00,731860439
BIS,The Insolvency Service,09/06/2014,Accommodation,ESTATES,BANNER BUSINESS SERVICES Ltd.,BA0000276216,25.34,731860439
BIS,The Insolvency Service,09/06/2014,Accommodation,ESTATES,BANNER BUSINESS SERVICES Ltd.,BA0000276216,25.56,731860439
BIS,The Insolvency Service,09/06/2014,Accommodation,ESTATES,BANNER BUSINESS SERVICES Ltd.,BA0000276216,26.02,731860439
BIS,The Insolvency Service,09/06/2014,Accommodation,ESTATES,BANNER BUSINESS SERVICES Ltd.,BA0000276216,37.36,731860439
BIS,The Insolvency Service,09/06/2014,Accommodation,ESTATES,BANNER BUSINESS SERVICES Ltd.,BA0000276216,39.24,731860439
BIS,The Insolvency Service,09/06/2014,Accommodation,ESTATES,BANNER BUSINESS SERVICES Ltd.,BA0000276216,42.34,731860439
BIS,The Insolvency Service,09/06/2014,Accommodation,ESTATES,BANNER BUSINESS SERVICES Ltd.,BA0000276216,42.88,731860439
BIS,The Insolvency Service,09/06/2014,Accommodation,ESTATES,BANNER BUSINESS SERVICES Ltd.,BA0000276216,45.57,731860439
BIS,The Insolvency Service,09/06/2014,Accommodation,ESTATES,BANNER BUSINESS SERVICES Ltd.,BA0000276216,70.20,731860439
BIS,The Insolvency Service,09/06/2014,Accommodation,ESTATES,BANNER BUSINESS SERVICES Ltd.,BA0000276216,74.46,731860439
BIS,The Insolvency Service,09/06/2014,Accommodation,ESTATES,BANNER BUSINESS SERVICES Ltd.,BA0000276216,78.15,731860439
BIS,The Insolvency Service,09/06/2014,Accommodation,ESTATES,BANNER BUSINESS SERVICES Ltd.,BA0000276216,79.20,731860439
BIS,The Insolvency Service,09/06/2014,Accommodation,ESTATES,BANNER BUSINESS SERVICES Ltd.,BA0000276216,82.78,731860439
BIS,The Insolvency Service,09/06/2014,Accommodation,ESTATES,BANNER BUSINESS SERVICES Ltd.,BA0000276216,91.14,731860439
BIS,The Insolvency Service,09/06/2014,Accommodation,ESTATES,BANNER BUSINESS SERVICES Ltd.,BA0000276216,92.34,731860439
BIS,The Insolvency Service,09/06/2014,Accommodation,ESTATES,BANNER BUSINESS SERVICES Ltd.,BA0000276216,95.53,731860439
BIS,The Insolvency Service,09/06/2014,Accommodation,ESTATES,BANNER BUSINESS SERVICES Ltd.,BA0000276216,183.55,731860439
BIS,The Insolvency Service,09/06/2014,Accommodation,ESTATES,BANNER BUSINESS SERVICES Ltd.,BA0000276216,211.90,731860439
BIS,The Insolvency Service,09/06/2014,Accommodation,ESTATES,BANNER BUSINESS SERVICES Ltd.,BA0000276216,898.02,731860439
BIS,The Insolvency Service,19/06/2014,Office Supplies and Services,INFORMATION TECHNOLOGY                                                                              ,BANNER BUSINESS SERVICES Ltd.,BA0000276616,"3,430.19",731860439
BIS,The Insolvency Service,19/06/2014,Office Supplies and Services,INVESTIGATIONS & ENFORCEMENT                                                                        ,BANNER BUSINESS SERVICES Ltd.,BA0000276616,330.72,731860439
BIS,The Insolvency Service,19/06/2014,Office Supplies and Services,OFFICIAL RECEIVER SERVICES                                                                          ,BANNER BUSINESS SERVICES Ltd.,BA0000276616,9.12,731860439
BIS,The Insolvency Service,19/06/2014,Office Supplies and Services,OFFICIAL RECEIVER SERVICES                                                                          ,BANNER BUSINESS SERVICES Ltd.,BA0000276616,71.27,731860439
BIS,The Insolvency Service,19/06/2014,Office Supplies and Services,OFFICIAL RECEIVER SERVICES                                                                          ,BANNER BUSINESS SERVICES Ltd.,BA0000276616,72.19,731860439
BIS,The Insolvency Service,19/06/2014,Office Supplies and Services,OFFICIAL RECEIVER SERVICES                                                                          ,BANNER BUSINESS SERVICES Ltd.,BA0000276616,82.52,731860439
BIS,The Insolvency Service,19/06/2014,Office Supplies and Services,OFFICIAL RECEIVER SERVICES                                                                          ,BANNER BUSINESS SERVICES Ltd.,BA0000276616,114.67,731860439
BIS,The Insolvency Service,19/06/2014,Office Supplies and Services,OFFICIAL RECEIVER SERVICES                                                                          ,BANNER BUSINESS SERVICES Ltd.,BA0000276616,140.75,731860439
BIS,The Insolvency Service,19/06/2014,Office Supplies and Services,OFFICIAL RECEIVER SERVICES                                                                          ,BANNER BUSINESS SERVICES Ltd.,BA0000276616,171.49,731860439
BIS,The Insolvency Service,19/06/2014,Office Supplies and Services,OFFICIAL RECEIVER SERVICES                                                                          ,BANNER BUSINESS SERVICES Ltd.,BA0000276616,173.44,731860439
BIS,The Insolvency Service,19/06/2014,Office Supplies and Services,OFFICIAL RECEIVER SERVICES                                                                          ,BANNER BUSINESS SERVICES Ltd.,BA0000276616,188.18,731860439
BIS,The Insolvency Service,19/06/2014,Office Supplies and Services,OFFICIAL RECEIVER SERVICES                                                                          ,BANNER BUSINESS SERVICES Ltd.,BA0000276616,208.32,731860439
BIS,The Insolvency Service,19/06/2014,Office Supplies and Services,OFFICIAL RECEIVER SERVICES                                                                          ,BANNER BUSINESS SERVICES Ltd.,BA0000276616,231.60,731860439
BIS,The Insolvency Service,19/06/2014,Office Supplies and Services,OFFICIAL RECEIVER SERVICES                                                                          ,BANNER BUSINESS SERVICES Ltd.,BA0000276616,234.72,731860439
BIS,The Insolvency Service,19/06/2014,Office Supplies and Services,OFFICIAL RECEIVER SERVICES                                                                          ,BANNER BUSINESS SERVICES Ltd.,BA0000276616,307.43,731860439
BIS,The Insolvency Service,19/06/2014,Office Supplies and Services,OFFICIAL RECEIVER SERVICES                                                                          ,BANNER BUSINESS SERVICES Ltd.,BA0000276616,312.36,731860439
BIS,The Insolvency Service,19/06/2014,Office Supplies and Services,OFFICIAL RECEIVER SERVICES                                                                          ,BANNER BUSINESS SERVICES Ltd.,BA0000276616,320.56,731860439
BIS,The Insolvency Service,19/06/2014,Office Supplies and Services,OFFICIAL RECEIVER SERVICES                                                                          ,BANNER BUSINESS SERVICES Ltd.,BA0000276616,323.80,731860439
BIS,The Insolvency Service,19/06/2014,Office Supplies and Services,OFFICIAL RECEIVER SERVICES                                                                          ,BANNER BUSINESS SERVICES Ltd.,BA0000276616,370.00,731860439
BIS,The Insolvency Service,19/06/2014,Office Supplies and Services,OFFICIAL RECEIVER SERVICES                                                                          ,BANNER BUSINESS SERVICES Ltd.,BA0000276616,536.70,731860439
BIS,The Insolvency Service,19/06/2014,Office Supplies and Services,OFFICIAL RECEIVER SERVICES                                                                          ,BANNER BUSINESS SERVICES Ltd.,BA0000276616,537.43,731860439
BIS,The Insolvency Service,19/06/2014,Office Supplies and Services,OFFICIAL RECEIVER SERVICES                                                                          ,BANNER BUSINESS SERVICES Ltd.,BA0000276616,"1,101.96",731860439
BIS,The Insolvency Service,03/06/2014,Accommodation,FINANCE AND COMMERCIAL                                                                              ,BERWIN LEIGHTON PAISNER,BA0000275995,"877,500.00",
BIS,The Insolvency Service,03/06/2014,Accommodation,FINANCE AND COMMERCIAL                                                                              ,BERWIN LEIGHTON PAISNER,BA0000275996,"405,000.00",
BIS,The Insolvency Service,03/06/2014,Accommodation,FINANCE AND COMMERCIAL                                                                              ,BERWIN LEIGHTON PAISNER,BA0000275997,"363,101.00",
BIS,The Insolvency Service,06/06/2014,Accommodation,ESTATES,BERWIN LEIGHTON PAISNER,BA0000276181,792.00,243244976
BIS,The Insolvency Service,06/06/2014,Accommodation,ESTATES,BERWIN LEIGHTON PAISNER,BA0000276182,846.00,243244976
BIS,The Insolvency Service,06/06/2014,Accommodation,ESTATES,BERWIN LEIGHTON PAISNER,BA0000276183,516.00,243244976
BIS,The Insolvency Service,06/06/2014,Accommodation,ESTATES,BERWIN LEIGHTON PAISNER,BA0000276184,480.00,243244976
BIS,The Insolvency Service,06/06/2014,Accommodation,ESTATES,BERWIN LEIGHTON PAISNER,BA0000276185,615.00,243244976
BIS,The Insolvency Service,06/06/2014,Accommodation,ESTATES,BERWIN LEIGHTON PAISNER,BA0000276186,300.00,243244976
BIS,The Insolvency Service,06/06/2014,Accommodation,ESTATES,BERWIN LEIGHTON PAISNER,BA0000276188,"1,107.18",243244976
BIS,The Insolvency Service,06/06/2014,Accommodation,ESTATES,BERWIN LEIGHTON PAISNER,BA0000276189,"1,023.00",243244976
BIS,The Insolvency Service,13/06/2014,Accommodation,FINANCE AND COMMERCIAL                                                                              ,BERWIN LEIGHTON PAISNER,BA0000276404,"2,292.00",
BIS,The Insolvency Service,19/06/2014,Accommodation,ESTATES,BERWIN LEIGHTON PAISNER,BA0000276615,"1,439.60",243244976
BIS,The Insolvency Service,25/06/2014,Accommodation,FINANCE AND COMMERCIAL                                                                              ,BERWIN LEIGHTON PAISNER,BA0000276671,960.00,243244976
BIS,The Insolvency Service,02/06/2014,Investigation and Enforcement Costs,INVESTIGATIONS & ENFORCEMENT                                                                        ,BOND DICKINSON                                              ,BA0000275957,"1,045.80",123392627
BIS,The Insolvency Service,09/06/2014,Investigation and Enforcement Costs,INVESTIGATIONS & ENFORCEMENT                                                                        ,BOND DICKINSON                                              ,BA0000276238,"2,136.80",123392627
BIS,The Insolvency Service,10/06/2014,Investigation and Enforcement Costs,INVESTIGATIONS & ENFORCEMENT                                                                        ,BOND DICKINSON                                              ,BA0000276278,"91,777.03",123392627
BIS,The Insolvency Service,10/06/2014,Investigation and Enforcement Costs,INVESTIGATIONS & ENFORCEMENT                                                                        ,BOND DICKINSON                                              ,BA0000276278,"87,342.25",123392627
BIS,The Insolvency Service,10/06/2014,Investigation and Enforcement Costs,INVESTIGATIONS & ENFORCEMENT                                                                        ,BOND DICKINSON                                              ,BA0000276278,"1,754.00",123392627
BIS,The Insolvency Service,10/06/2014,Investigation and Enforcement Costs,INVESTIGATIONS & ENFORCEMENT                                                                        ,BOND DICKINSON                                              ,BA0000276278,"3,915.40",123392627
BIS,The Insolvency Service,10/06/2014,Investigation and Enforcement Costs,INVESTIGATIONS & ENFORCEMENT                                                                        ,BOND DICKINSON                                              ,BA0000276278,"54,464.97",123392627
BIS,The Insolvency Service,27/06/2014,Investigation and Enforcement Costs,INVESTIGATIONS & ENFORCEMENT                                                                        ,BOND DICKINSON                                              ,BA0000276774,780.00,
BIS,The Insolvency Service,05/06/2014,Investigation and Enforcement Costs,INVESTIGATIONS & ENFORCEMENT                                                                        ,BOND DICKINSON                                              ,BA0000276111,"13,334.40",
BIS,The Insolvency Service,05/06/2014,Accommodation,ESTATES,BRITISH GAS BUSINESS,BA0000276129,340.81,684966762
BIS,The Insolvency Service,05/06/2014,Accommodation,ESTATES,BRITISH GAS BUSINESS,BA0000276130,61.83,684966762
BIS,The Insolvency Service,05/06/2014,Accommodation,ESTATES,BRITISH GAS BUSINESS,BA0000276131,113.80,684966762
BIS,The Insolvency Service,05/06/2014,Accommodation,ESTATES,BRITISH GAS BUSINESS,BA0000276132,125.19,684966762
BIS,The Insolvency Service,05/06/2014,Accommodation,ESTATES,BRITISH GAS BUSINESS,BA0000276133,232.76,684966762
BIS,The Insolvency Service,05/06/2014,Accommodation,ESTATES,BRITISH GAS BUSINESS,BA0000276134,167.81,684966762
BIS,The Insolvency Service,05/06/2014,Accommodation,ESTATES,BRITISH GAS BUSINESS,BA0000276135,501.65,684966762
BIS,The Insolvency Service,05/06/2014,Accommodation,ESTATES,BRITISH GAS BUSINESS,BA0000276136,375.90,684966762
BIS,The Insolvency Service,05/06/2014,Accommodation,ESTATES,BRITISH GAS BUSINESS,BA0000276137,256.38,684966762
BIS,The Insolvency Service,05/06/2014,Accommodation,ESTATES,BRITISH GAS BUSINESS,BA0000276138,66.39,684966762
BIS,The Insolvency Service,13/06/2014,Accommodation,ESTATES,BRITISH GAS BUSINESS,BA0000276417,124.41,684966762
BIS,The Insolvency Service,13/06/2014,Accommodation,ESTATES,BRITISH GAS BUSINESS,BA0000276418,67.56,684966762
BIS,The Insolvency Service,13/06/2014,Accommodation,ESTATES,BRITISH GAS BUSINESS,BA0000276419,109.55,684966762
BIS,The Insolvency Service,13/06/2014,Accommodation,ESTATES,BRITISH GAS BUSINESS,BA0000276420,74.51,684966762
BIS,The Insolvency Service,13/06/2014,Accommodation,ESTATES,BRITISH GAS BUSINESS,BA0000276443,524.24,684966762
BIS,The Insolvency Service,13/06/2014,Accommodation,ESTATES,BRITISH GAS BUSINESS,BA0000276444,165.96,684966762
BIS,The Insolvency Service,13/06/2014,Accommodation,ESTATES,BRITISH GAS BUSINESS,BA0000276445,232.15,684966762
BIS,The Insolvency Service,02/06/2014,Agency Workers,OFFICIAL RECEIVER SERVICES                                                                          ,BROOK STREET (UK) LTD,BA0000275935,472.44,
BIS,The Insolvency Service,02/06/2014,Agency Workers,OFFICIAL RECEIVER SERVICES                                                                          ,BROOK STREET (UK) LTD,BA0000275940,457.20,
BIS,The Insolvency Service,02/06/2014,Agency Workers,OFFICIAL RECEIVER SERVICES                                                                          ,BROOK STREET (UK) LTD,BA0000275941,457.20,
BIS,The Insolvency Service,12/06/2014,Agency Workers,PROJECTS                                                                                            ,BROOK STREET (UK) LTD,BA0000276370,570.96,
BIS,The Insolvency Service,13/06/2014,Agency Workers,OFFICIAL RECEIVER SERVICES                                                                          ,BROOK STREET (UK) LTD,BA0000276423,317.50,
BIS,The Insolvency Service,13/06/2014,Agency Workers,PROJECTS                                                                                            ,BROOK STREET (UK) LTD,BA0000276421,713.70,
BIS,The Insolvency Service,17/06/2014,Agency Workers,OFFICIAL RECEIVER SERVICES                                                                          ,BROOK STREET (UK) LTD,BA0000276507,457.20,
BIS,The Insolvency Service,17/06/2014,Agency Workers,OFFICIAL RECEIVER SERVICES                                                                          ,BROOK STREET (UK) LTD,BA0000276508,466.34,
BIS,The Insolvency Service,17/06/2014,Agency Workers,OFFICIAL RECEIVER SERVICES                                                                          ,BROOK STREET (UK) LTD,BA0000276509,472.44,
BIS,The Insolvency Service,17/06/2014,Agency Workers,OFFICIAL RECEIVER SERVICES                                                                          ,BROOK STREET (UK) LTD,BA0000276510,299.72,
BIS,The Insolvency Service,17/06/2014,Agency Workers,OFFICIAL RECEIVER SERVICES                                                                          ,BROOK STREET (UK) LTD,BA0000276511,309.88,
BIS,The Insolvency Service,17/06/2014,Agency Workers,OFFICIAL RECEIVER SERVICES                                                                          ,BROOK STREET (UK) LTD,BA0000276512,371.86,
BIS,The Insolvency Service,17/06/2014,Agency Workers,OFFICIAL RECEIVER SERVICES                                                                          ,BROOK STREET (UK) LTD,BA0000276513,274.32,
BIS,The Insolvency Service,17/06/2014,Agency Workers,OFFICIAL RECEIVER SERVICES                                                                          ,BROOK STREET (UK) LTD,BA0000276514,362.71,
BIS,The Insolvency Service,19/06/2014,Agency Workers,OFFICIAL RECEIVER SERVICES                                                                          ,BROOK STREET (UK) LTD,BA0000276596,466.34,
BIS,The Insolvency Service,19/06/2014,Agency Workers,OFFICIAL RECEIVER SERVICES                                                                          ,BROOK STREET (UK) LTD,BA0000276597,457.20,
BIS,The Insolvency Service,19/06/2014,Agency Workers,OFFICIAL RECEIVER SERVICES                                                                          ,BROOK STREET (UK) LTD,BA0000276598,457.20,
BIS,The Insolvency Service,19/06/2014,Agency Workers,OFFICIAL RECEIVER SERVICES                                                                          ,BROOK STREET (UK) LTD,BA0000276599,457.20,
BIS,The Insolvency Service,19/06/2014,Agency Workers,OFFICIAL RECEIVER SERVICES                                                                          ,BROOK STREET (UK) LTD,BA0000276604,457.20,
BIS,The Insolvency Service,25/06/2014,Agency Workers,PROJECTS                                                                                            ,BROOK STREET (UK) LTD,BA0000276674,728.69,
BIS,The Insolvency Service,27/06/2014,Agency Workers,PROJECTS                                                                                            ,BROOK STREET (UK) LTD,BA0000276772,747.86,
BIS,The Insolvency Service,10/06/2014,Telecoms,FINANCE AND COMMERCIAL                                                                              ,BT CONFERENCING SERVICES,BA0000276287,8.12,245719348
BIS,The Insolvency Service,10/06/2014,Telecoms,FINANCE AND COMMERCIAL                                                                              ,BT CONFERENCING SERVICES,BA0000276287,133.00,245719348
BIS,The Insolvency Service,10/06/2014,Telecoms,FINANCE AND COMMERCIAL                                                                              ,BT CONFERENCING SERVICES,BA0000276287,201.82,245719348
BIS,The Insolvency Service,10/06/2014,Telecoms,INFORMATION TECHNOLOGY                                                                              ,BT CONFERENCING SERVICES,BA0000276287,24.55,245719348
BIS,The Insolvency Service,10/06/2014,Telecoms,INFORMATION TECHNOLOGY                                                                              ,BT CONFERENCING SERVICES,BA0000276287,"2,774.39",245719348
BIS,The Insolvency Service,10/06/2014,Telecoms,OFFICIAL RECEIVER SERVICES                                                                          ,BT CONFERENCING SERVICES,BA0000276287,2.11,245719348
BIS,The Insolvency Service,10/06/2014,Telecoms,OFFICIAL RECEIVER SERVICES                                                                          ,BT CONFERENCING SERVICES,BA0000276287,2.51,245719348
BIS,The Insolvency Service,10/06/2014,Telecoms,OFFICIAL RECEIVER SERVICES                                                                          ,BT CONFERENCING SERVICES,BA0000276287,3.10,245719348
BIS,The Insolvency Service,10/06/2014,Telecoms,OFFICIAL RECEIVER SERVICES                                                                          ,BT CONFERENCING SERVICES,BA0000276287,3.38,245719348
BIS,The Insolvency Service,10/06/2014,Telecoms,OFFICIAL RECEIVER SERVICES                                                                          ,BT CONFERENCING SERVICES,BA0000276287,3.97,245719348
BIS,The Insolvency Service,10/06/2014,Telecoms,OFFICIAL RECEIVER SERVICES                                                                          ,BT CONFERENCING SERVICES,BA0000276287,4.08,245719348
BIS,The Insolvency Service,10/06/2014,Telecoms,OFFICIAL RECEIVER SERVICES                                                                          ,BT CONFERENCING SERVICES,BA0000276287,4.44,245719348
BIS,The Insolvency Service,10/06/2014,Telecoms,OFFICIAL RECEIVER SERVICES                                                                          ,BT CONFERENCING SERVICES,BA0000276287,5.02,245719348
BIS,The Insolvency Service,10/06/2014,Telecoms,OFFICIAL RECEIVER SERVICES                                                                          ,BT CONFERENCING SERVICES,BA0000276287,5.51,245719348
BIS,The Insolvency Service,10/06/2014,Telecoms,OFFICIAL RECEIVER SERVICES                                                                          ,BT CONFERENCING SERVICES,BA0000276287,7.19,245719348
BIS,The Insolvency Service,10/06/2014,Telecoms,OFFICIAL RECEIVER SERVICES                                                                          ,BT CONFERENCING SERVICES,BA0000276287,14.15,245719348
BIS,The Insolvency Service,10/06/2014,Telecoms,OFFICIAL RECEIVER SERVICES                                                                          ,BT CONFERENCING SERVICES,BA0000276287,30.34,245719348
BIS,The Insolvency Service,01/06/2014,Telecoms,FINANCE AND COMMERCIAL                                                                              ,BT TELEPHONE PAYMENT CENTRE,BA0000276412,80.11,245719348
BIS,The Insolvency Service,01/06/2014,Telecoms,FINANCE AND COMMERCIAL                                                                              ,BT TELEPHONE PAYMENT CENTRE,BA0000276412,86.34,245719348
BIS,The Insolvency Service,01/06/2014,Telecoms,FINANCE AND COMMERCIAL                                                                              ,BT TELEPHONE PAYMENT CENTRE,BA0000276412,107.43,245719348
BIS,The Insolvency Service,01/06/2014,Telecoms,FINANCE AND COMMERCIAL                                                                              ,BT TELEPHONE PAYMENT CENTRE,BA0000276412,93.44,245719348
BIS,The Insolvency Service,01/06/2014,Telecoms,FINANCE AND COMMERCIAL                                                                              ,BT TELEPHONE PAYMENT CENTRE,BA0000276412,93.87,245719348
BIS,The Insolvency Service,01/06/2014,Telecoms,FINANCE AND COMMERCIAL                                                                              ,BT TELEPHONE PAYMENT CENTRE,BA0000276412,96.39,245719348
BIS,The Insolvency Service,01/06/2014,Telecoms,FINANCE AND COMMERCIAL                                                                              ,BT TELEPHONE PAYMENT CENTRE,BA0000276412,25.28,245719348
BIS,The Insolvency Service,01/06/2014,Telecoms,FINANCE AND COMMERCIAL                                                                              ,BT TELEPHONE PAYMENT CENTRE,BA0000276412,140.17,245719348
BIS,The Insolvency Service,01/06/2014,Telecoms,FINANCE AND COMMERCIAL                                                                              ,BT TELEPHONE PAYMENT CENTRE,BA0000276412,79.87,245719348
BIS,The Insolvency Service,01/06/2014,Telecoms,FINANCE AND COMMERCIAL                                                                              ,BT TELEPHONE PAYMENT CENTRE,BA0000276412,136.15,245719348
BIS,The Insolvency Service,01/06/2014,Telecoms,FINANCE AND COMMERCIAL                                                                              ,BT TELEPHONE PAYMENT CENTRE,BA0000276412,76.07,245719348
BIS,The Insolvency Service,01/06/2014,Telecoms,FINANCE AND COMMERCIAL                                                                              ,BT TELEPHONE PAYMENT CENTRE,BA0000276412,79.40,245719348
BIS,The Insolvency Service,01/06/2014,Telecoms,INFORMATION TECHNOLOGY                                                                              ,BT TELEPHONE PAYMENT CENTRE,BA0000276412,118.03,245719348
BIS,The Insolvency Service,01/06/2014,Telecoms,FINANCE AND COMMERCIAL                                                                              ,BT TELEPHONE PAYMENT CENTRE,BA0000276412,74.21,245719348
BIS,The Insolvency Service,01/06/2014,Telecoms,FINANCE AND COMMERCIAL                                                                              ,BT TELEPHONE PAYMENT CENTRE,BA0000276412,84.97,245719348
BIS,The Insolvency Service,01/06/2014,Telecoms,FINANCE AND COMMERCIAL                                                                              ,BT TELEPHONE PAYMENT CENTRE,BA0000276412,86.34,245719348
BIS,The Insolvency Service,01/06/2014,Telecoms,INFORMATION TECHNOLOGY                                                                              ,BT TELEPHONE PAYMENT CENTRE,BA0000276412,75.82,245719348
BIS,The Insolvency Service,01/06/2014,Telecoms,INFORMATION TECHNOLOGY                                                                              ,BT TELEPHONE PAYMENT CENTRE,BA0000276412,103.73,245719348
BIS,The Insolvency Service,01/06/2014,Telecoms,INFORMATION TECHNOLOGY                                                                              ,BT TELEPHONE PAYMENT CENTRE,BA0000276412,137.03,245719348
BIS,The Insolvency Service,01/06/2014,Telecoms,FINANCE AND COMMERCIAL                                                                              ,BT TELEPHONE PAYMENT CENTRE,BA0000276412,145.14,245719348
BIS,The Insolvency Service,02/06/2014,Telecoms,OFFICIAL RECEIVER SERVICES                                                                          ,BT TELEPHONE PAYMENT CENTRE,BA0000275942,20.68,245719348
BIS,The Insolvency Service,18/06/2014,Telecoms,OFFICIAL RECEIVER SERVICES                                                                          ,BT TELEPHONE PAYMENT CENTRE,BA0000276554,56.27,245719348
BIS,The Insolvency Service,10/06/2014,Investigation and Enforcement Costs,INVESTIGATIONS & ENFORCEMENT                                                                        ,BURNESS PAULL & WILLIAMSONS SOLICITORS,BA0000276279,12.00,268398111
BIS,The Insolvency Service,10/06/2014,Investigation and Enforcement Costs,INVESTIGATIONS & ENFORCEMENT                                                                        ,BURNESS PAULL & WILLIAMSONS SOLICITORS,BA0000276279,"25,284.15",268398111
BIS,The Insolvency Service,10/06/2014,Investigation and Enforcement Costs,INVESTIGATIONS & ENFORCEMENT                                                                        ,BURNESS PAULL & WILLIAMSONS SOLICITORS,BA0000276279,"3,580.00",268398111
BIS,The Insolvency Service,10/06/2014,Investigation and Enforcement Costs,INVESTIGATIONS & ENFORCEMENT                                                                        ,BURNESS PAULL & WILLIAMSONS SOLICITORS,BA0000276279,"24,645.12",268398111
BIS,The Insolvency Service,10/06/2014,Investigation and Enforcement Costs,INVESTIGATIONS & ENFORCEMENT                                                                        ,BURNESS PAULL & WILLIAMSONS SOLICITORS,BA0000276279,7.80,268398111
BIS,The Insolvency Service,10/06/2014,Investigation and Enforcement Costs,INVESTIGATIONS & ENFORCEMENT                                                                        ,BURNESS PAULL & WILLIAMSONS SOLICITORS,BA0000276279,"1,754.20",268398111
BIS,The Insolvency Service,02/06/2014,Training Costs,FINANCE AND COMMERCIAL                                                                              ,CAPITA BUSINESS SERVICES LTD,BA0000275938,170.00,618184140
BIS,The Insolvency Service,02/06/2014,Training Costs,FINANCE AND COMMERCIAL                                                                              ,CAPITA BUSINESS SERVICES LTD,BA0000275939,170.00,618184140
BIS,The Insolvency Service,02/06/2014,Training Costs,PEOPLE & CAPABILITY                                                                                 ,CAPITA BUSINESS SERVICES LTD,BA0000275961,"4,154.15",618184140
BIS,The Insolvency Service,05/06/2014,Training Costs,PEOPLE & CAPABILITY                                                                                 ,CAPITA BUSINESS SERVICES LTD,BA0000276145,178.82,618184140
BIS,The Insolvency Service,06/06/2014,Training Costs,PEOPLE & CAPABILITY                                                                                 ,CAPITA BUSINESS SERVICES LTD,BA0000276180,206.00,618184140
BIS,The Insolvency Service,10/06/2014,Training Costs,PEOPLE & CAPABILITY                                                                                 ,CAPITA BUSINESS SERVICES LTD,BA0000276268,178.82,618184140
BIS,The Insolvency Service,11/06/2014,Training Costs,FINANCE AND COMMERCIAL                                                                              ,CAPITA BUSINESS SERVICES LTD,BA0000276330,"77,160.00",618184140
BIS,The Insolvency Service,17/06/2014,Training Costs,FINANCE AND COMMERCIAL                                                                              ,CAPITA BUSINESS SERVICES LTD,BA0000276495,"3,353.00",618184140
BIS,The Insolvency Service,17/06/2014,Training Costs,FINANCE AND COMMERCIAL                                                                              ,CAPITA BUSINESS SERVICES LTD,BA0000276496,"3,353.00",618184140
BIS,The Insolvency Service,17/06/2014,Training Costs,PEOPLE & CAPABILITY                                                                                 ,CAPITA BUSINESS SERVICES LTD,BA0000276516,197.00,618184140
BIS,The Insolvency Service,17/06/2014,Training Costs,PEOPLE & CAPABILITY                                                                                 ,CAPITA BUSINESS SERVICES LTD,BA0000276517,76.00,618184140
BIS,The Insolvency Service,18/06/2014,Training Costs,PEOPLE & CAPABILITY                                                                                 ,CAPITA BUSINESS SERVICES LTD,BA0000276537,661.00,618184140
BIS,The Insolvency Service,18/06/2014,Training Costs,PEOPLE & CAPABILITY                                                                                 ,CAPITA BUSINESS SERVICES LTD,BA0000276538,250.00,618184140
BIS,The Insolvency Service,25/06/2014,Training Costs,PEOPLE & CAPABILITY                                                                                 ,CAPITA BUSINESS SERVICES LTD,BA0000276632,125.00,618184140
BIS,The Insolvency Service,25/06/2014,Training Costs,PEOPLE & CAPABILITY                                                                                 ,CAPITA BUSINESS SERVICES LTD,BA0000276633,76.00,618184140
BIS,The Insolvency Service,25/06/2014,Training Costs,PEOPLE & CAPABILITY                                                                                 ,CAPITA BUSINESS SERVICES LTD,BA0000276666,120.00,618184140
BIS,The Insolvency Service,12/06/2014,Employee Related Costs,PEOPLE & CAPABILITY                                                                                 ,CAPITA HEALTH AND WELLBEING LTD                             ,BA0000276382,490.58,867412506
BIS,The Insolvency Service,12/06/2014,Employee Related Costs,PEOPLE & CAPABILITY                                                                                 ,CAPITA HEALTH AND WELLBEING LTD                             ,BA0000276383,104.00,867412506
BIS,The Insolvency Service,05/06/2014,Agency Workers,FINANCE AND COMMERCIAL                                                                              ,CAPITA RESOURCING LTD,BA0000276125,"7,020.00",618184140
BIS,The Insolvency Service,10/06/2014,Agency Workers,FINANCE AND COMMERCIAL                                                                              ,CAPITA RESOURCING LTD,BA0000276290,"3,730.54",618184140
BIS,The Insolvency Service,13/06/2014,Agency Workers,FINANCE AND COMMERCIAL                                                                              ,CAPITA RESOURCING LTD,BA0000276406,"3,900.00",618184140
BIS,The Insolvency Service,19/06/2014,Agency Workers,FINANCE AND COMMERCIAL                                                                              ,CAPITA RESOURCING LTD,BA0000276462,"-2,072.52",618184140
BIS,The Insolvency Service,19/06/2014,Agency Workers,FINANCE AND COMMERCIAL                                                                              ,CAPITA RESOURCING LTD,BA0000276608,"2,072.52",618184140
BIS,The Insolvency Service,19/06/2014,Computer and IT Systems,INFORMATION TECHNOLOGY                                                                              ,CAPITA RESOURCING LTD,BA0000276609,"2,694.30",618184140
BIS,The Insolvency Service,19/06/2014,Computer and IT Systems,INFORMATION TECHNOLOGY                                                                              ,CAPITA RESOURCING LTD,BA0000276610,"2,694.30",618184140
BIS,The Insolvency Service,09/06/2014,Employee Related Costs,PEOPLE & CAPABILITY                                                                                 ,CARTUS FINANCING LIMITED,BA0000276225,"1,240.72",768489458
BIS,The Insolvency Service,27/06/2014,Employee Related Costs,OFFICIAL RECEIVER SERVICES                                                                          ,CARTUS FINANCING LIMITED,BA0000276754,"15,000.00",768489458
BIS,The Insolvency Service,10/06/2014,Employee Related Costs,PEOPLE & CAPABILITY                                                                                 ,CARTUS FUNDING LIMITED,BA0000276267,376.00,768489458
BIS,The Insolvency Service,10/06/2014,Employee Related Costs,PEOPLE & CAPABILITY                                                                                 ,CARTUS FUNDING LIMITED,BA0000276271,214.90,768489458
BIS,The Insolvency Service,30/06/2014,Employee Related Costs,EXTERNAL AFFAIRS                                                                                    ,CARTUS FUNDING LIMITED,BA0000276844,916.27,768489458
BIS,The Insolvency Service,30/06/2014,Employee Related Costs,INVESTIGATIONS & ENFORCEMENT                                                                        ,CARTUS FUNDING LIMITED,BA0000276842,43.95,768489458
BIS,The Insolvency Service,30/06/2014,Employee Related Costs,OFFICIAL RECEIVER SERVICES                                                                          ,CARTUS FUNDING LIMITED,BA0000276843,552.24,768489458
BIS,The Insolvency Service,18/06/2014,Accommodation,ESTATES,CBRE - PROPERTY AND ASSET MANAGEMENT,BA0000276573,"51,900.00",
BIS,The Insolvency Service,18/06/2014,Accommodation,ESTATES,CBRE - PROPERTY AND ASSET MANAGEMENT,BA0000276573,"10,979.00",
BIS,The Insolvency Service,03/06/2014,Accommodation,ESTATES,CBRE LIMITED,BA0000276026,"164,512.50",
BIS,The Insolvency Service,03/06/2014,Accommodation,ESTATES,CBRE LIMITED,BA0000276027,"164,880.00",
BIS,The Insolvency Service,03/06/2014,Accommodation,ESTATES,CBRE LIMITED,BA0000276026,"18,641.91",
BIS,The Insolvency Service,03/06/2014,Accommodation,ESTATES,CBRE LIMITED,BA0000276027,"18,671.18",
BIS,The Insolvency Service,16/06/2014,Accommodation,ESTATES,CBRE LIMITED,BA0000276457,"8,720.13",
BIS,The Insolvency Service,16/06/2014,Accommodation,ESTATES,CBRE LIMITED,BA0000276458,"8,706.44",
BIS,The Insolvency Service,16/06/2014,Accommodation,ESTATES,CBRE LIMITED,BA0000276459,"-8,706.44",
BIS,The Insolvency Service,16/06/2014,Accommodation,ESTATES,CBRE LIMITED,BA0000276460,"-8,720.13",
BIS,The Insolvency Service,17/06/2014,Accommodation,ESTATES,CBRE LIMITED,BA0000276484,"10,447.73",
BIS,The Insolvency Service,17/06/2014,Accommodation,ESTATES,CBRE LIMITED,BA0000276485,"10,464.16",
BIS,The Insolvency Service,18/06/2014,Accommodation,ESTATES,CBRE LIMITED,BA0000276574,"3,977.81",
BIS,The Insolvency Service,18/06/2014,Accommodation,ESTATES,CBRE LIMITED,BA0000276575,"4,287.47",
BIS,The Insolvency Service,25/06/2014,Accommodation,ESTATES,CBRE RICHARD ELLIS CBRE LTD,BA0000276649,"58,352.86",
BIS,The Insolvency Service,25/06/2014,Accommodation,ESTATES,CBRE RICHARD ELLIS CBRE LTD,BA0000276649,"20,142.25",
BIS,The Insolvency Service,01/06/2014,Training Costs,PEOPLE & CAPABILITY                                                                                 ,CENTRE FOR STRATEGY & COMMUNICATION,BA0000276412,"1,572.00",681165334
BIS,The Insolvency Service,03/06/2014,Computer and IT Systems,INFORMATION TECHNOLOGY                                                                              ,CERTES COMPUTING LIMITED,BA0000276025,"9,865.68",
BIS,The Insolvency Service,10/06/2014,Accommodation,OFFICIAL RECEIVER SERVICES                                                                          ,CGM LANDSCAPES (COMPLETE GROUNDS MAINTENANCE LTD),BA0000276293,102.00,943560027
BIS,The Insolvency Service,19/06/2014,Training Costs,PEOPLE & CAPABILITY                                                                                 ,CHARTERED INSTITUTE OF INTERNAL AUDITORS,BA0000276612,"3,460.00",354316368
BIS,The Insolvency Service,05/06/2014,Travel and Subsistence,BUSINESS SERVICES DIRECTORATE                                                                       ,CITY CABS (EDINBURGH) LTD,BA0000276146,82.72,270679436
BIS,The Insolvency Service,11/06/2014,Postage,INFORMATION TECHNOLOGY                                                                              ,CITY SPRINT UK LTD,BA0000276340,244.48,
BIS,The Insolvency Service,12/06/2014,Postage,OFFICIAL RECEIVER SERVICES                                                                          ,CITY SPRINT UK LTD,BA0000276381,39.29,
BIS,The Insolvency Service,18/06/2014,Postage,OFFICIAL RECEIVER SERVICES                                                                          ,CITY SPRINT UK LTD,BA0000276539,126.31,
BIS,The Insolvency Service,19/06/2014,Postage,FINANCE AND COMMERCIAL                                                                              ,CITY SPRINT UK LTD,BA0000276592,15.30,
BIS,The Insolvency Service,27/06/2014,Postage,OFFICIAL RECEIVER SERVICES                                                                          ,CITY SPRINT UK LTD,BA0000276773,89.36,
BIS,The Insolvency Service,11/06/2014,Investigation and Enforcement Costs,INVESTIGATIONS & ENFORCEMENT                                                                        ,CLARKE WILLMOTT SOLICITORS,BA0000276320,431.57,129913060
BIS,The Insolvency Service,11/06/2014,Telecoms,BUSINESS SERVICES DIRECTORATE                                                                       ,CLOUDXL,BA0000276342,"1,673.86",897386841
BIS,The Insolvency Service,03/06/2014,Insolvency Case Related Costs,INVESTIGATIONS & ENFORCEMENT                                                                        ,COMPANIES HOUSE,BA0000276009,33.00,GD255
BIS,The Insolvency Service,03/06/2014,Insolvency Case Related Costs,INVESTIGATIONS & ENFORCEMENT                                                                        ,COMPANIES HOUSE,BA0000276010,995.00,GD255
BIS,The Insolvency Service,03/06/2014,Insolvency Case Related Costs,INVESTIGATIONS & ENFORCEMENT                                                                        ,COMPANIES HOUSE,BA0000276011,880.00,GD255
BIS,The Insolvency Service,03/06/2014,Insolvency Case Related Costs,INVESTIGATIONS & ENFORCEMENT                                                                        ,COMPANIES HOUSE,BA0000276012,255.00,GD255
BIS,The Insolvency Service,09/06/2014,Insolvency Case Related Costs,OFFICIAL RECEIVER SERVICES                                                                          ,COMPANIES HOUSE,BA0000276227,106.00,GD255
BIS,The Insolvency Service,09/06/2014,Insolvency Case Related Costs,OFFICIAL RECEIVER SERVICES                                                                          ,COMPANIES HOUSE,BA0000276229,204.00,GD255
BIS,The Insolvency Service,10/06/2014,Insolvency Case Related Costs,OFFICIAL RECEIVER SERVICES                                                                          ,COMPANIES HOUSE,BA0000276273,43.00,GD255
BIS,The Insolvency Service,11/06/2014,Insolvency Case Related Costs,OFFICIAL RECEIVER SERVICES                                                                          ,COMPANIES HOUSE,BA0000276335,161.00,GD255
BIS,The Insolvency Service,11/06/2014,Insolvency Case Related Costs,OFFICIAL RECEIVER SERVICES                                                                          ,COMPANIES HOUSE,BA0000276336,114.00,GD255
BIS,The Insolvency Service,12/06/2014,Insolvency Case Related Costs,OFFICIAL RECEIVER SERVICES                                                                          ,COMPANIES HOUSE,BA0000276373,20.00,GD255
BIS,The Insolvency Service,13/06/2014,Insolvency Case Related Costs,OFFICIAL RECEIVER SERVICES                                                                          ,COMPANIES HOUSE,BA0000276424,39.00,GD255
BIS,The Insolvency Service,13/06/2014,Insolvency Case Related Costs,OFFICIAL RECEIVER SERVICES                                                                          ,COMPANIES HOUSE,BA0000276416,61.00,GD255
BIS,The Insolvency Service,13/06/2014,Insolvency Case Related Costs,OFFICIAL RECEIVER SERVICES                                                                          ,COMPANIES HOUSE,BA0000276442,23.00,GD255
BIS,The Insolvency Service,13/06/2014,Insolvency Case Related Costs,OFFICIAL RECEIVER SERVICES                                                                          ,COMPANIES HOUSE,BA0000276446,46.00,GD255
BIS,The Insolvency Service,16/06/2014,Insolvency Case Related Costs,OFFICIAL RECEIVER SERVICES                                                                          ,COMPANIES HOUSE,BA0000276471,206.00,GD255
BIS,The Insolvency Service,16/06/2014,Insolvency Case Related Costs,OFFICIAL RECEIVER SERVICES                                                                          ,COMPANIES HOUSE,BA0000276472,32.00,GD255
BIS,The Insolvency Service,16/06/2014,Insolvency Case Related Costs,OFFICIAL RECEIVER SERVICES                                                                          ,COMPANIES HOUSE,BA0000276475,155.00,GD255
BIS,The Insolvency Service,16/06/2014,Insolvency Case Related Costs,OFFICIAL RECEIVER SERVICES                                                                          ,COMPANIES HOUSE,BA0000276476,42.00,GD255
BIS,The Insolvency Service,17/06/2014,Insolvency Case Related Costs,OFFICIAL RECEIVER SERVICES                                                                          ,COMPANIES HOUSE,BA0000276500,51.00,GD255
BIS,The Insolvency Service,18/06/2014,Insolvency Case Related Costs,OFFICIAL RECEIVER SERVICES                                                                          ,COMPANIES HOUSE,BA0000276540,82.00,GD255
BIS,The Insolvency Service,18/06/2014,Insolvency Case Related Costs,OFFICIAL RECEIVER SERVICES                                                                          ,COMPANIES HOUSE,BA0000276541,45.00,GD255
BIS,The Insolvency Service,18/06/2014,Insolvency Case Related Costs,OFFICIAL RECEIVER SERVICES                                                                          ,COMPANIES HOUSE,BA0000276555,244.00,GD255
BIS,The Insolvency Service,18/06/2014,Insolvency Case Related Costs,OFFICIAL RECEIVER SERVICES                                                                          ,COMPANIES HOUSE,BA0000276556,66.00,GD255
BIS,The Insolvency Service,18/06/2014,Insolvency Case Related Costs,OFFICIAL RECEIVER SERVICES                                                                          ,COMPANIES HOUSE,BA0000276557,18.00,GD255
BIS,The Insolvency Service,18/06/2014,Insolvency Case Related Costs,OFFICIAL RECEIVER SERVICES                                                                          ,COMPANIES HOUSE,BA0000276558,76.00,GD255
BIS,The Insolvency Service,18/06/2014,Insolvency Case Related Costs,OFFICIAL RECEIVER SERVICES                                                                          ,COMPANIES HOUSE,BA0000276559,204.00,GD255
BIS,The Insolvency Service,19/06/2014,Insolvency Case Related Costs,OFFICIAL RECEIVER SERVICES                                                                          ,COMPANIES HOUSE,BA0000276593,62.00,GD255
BIS,The Insolvency Service,19/06/2014,Insolvency Case Related Costs,OFFICIAL RECEIVER SERVICES                                                                          ,COMPANIES HOUSE,BA0000276594,88.00,GD255
BIS,The Insolvency Service,25/06/2014,Insolvency Case Related Costs,OFFICIAL RECEIVER SERVICES                                                                          ,COMPANIES HOUSE,BA0000276627,131.00,GD255
BIS,The Insolvency Service,25/06/2014,Insolvency Case Related Costs,OFFICIAL RECEIVER SERVICES                                                                          ,COMPANIES HOUSE,BA0000276628,21.00,GD255
BIS,The Insolvency Service,25/06/2014,Insolvency Case Related Costs,OFFICIAL RECEIVER SERVICES                                                                          ,COMPANIES HOUSE,BA0000276634,40.00,GD255
BIS,The Insolvency Service,25/06/2014,Insolvency Case Related Costs,OFFICIAL RECEIVER SERVICES                                                                          ,COMPANIES HOUSE,BA0000276635,24.00,GD255
BIS,The Insolvency Service,25/06/2014,Insolvency Case Related Costs,OFFICIAL RECEIVER SERVICES                                                                          ,COMPANIES HOUSE,BA0000276636,33.00,GD255
BIS,The Insolvency Service,25/06/2014,Insolvency Case Related Costs,OFFICIAL RECEIVER SERVICES                                                                          ,COMPANIES HOUSE,BA0000276637,19.00,GD255
BIS,The Insolvency Service,25/06/2014,Insolvency Case Related Costs,OFFICIAL RECEIVER SERVICES                                                                          ,COMPANIES HOUSE,BA0000276665,118.00,GD255
BIS,The Insolvency Service,30/06/2014,Insolvency Case Related Costs,OFFICIAL RECEIVER SERVICES                                                                          ,COMPANIES HOUSE,BA0000276832,70.00,GD255
BIS,The Insolvency Service,30/06/2014,Insolvency Case Related Costs,OFFICIAL RECEIVER SERVICES                                                                          ,COMPANIES HOUSE,BA0000276839,45.00,GD255
BIS,The Insolvency Service,30/06/2014,Insolvency Case Related Costs,OFFICIAL RECEIVER SERVICES                                                                          ,COMPANIES HOUSE,BA0000276840,45.00,GD255
BIS,The Insolvency Service,30/06/2014,Insolvency Case Related Costs,OFFICIAL RECEIVER SERVICES                                                                          ,COMPANIES HOUSE,BA0000276856,2.00,GD255
BIS,The Insolvency Service,30/06/2014,Insolvency Case Related Costs,OFFICIAL RECEIVER SERVICES                                                                          ,COMPANIES HOUSE,BA0000276865,51.00,GD255
BIS,The Insolvency Service,30/06/2014,Insolvency Case Related Costs,OFFICIAL RECEIVER SERVICES                                                                          ,COMPANIES HOUSE,BA0000276857,31.00,GD255
BIS,The Insolvency Service,05/06/2014,Computer and IT Systems,INFORMATION TECHNOLOGY                                                                              ,COMPUTACENTER (UK) LIMITED,BA0000276073,"12,985.43",490334648
BIS,The Insolvency Service,05/06/2014,Computer and IT Systems,INFORMATION TECHNOLOGY                                                                              ,COMPUTACENTER (UK) LIMITED,BA0000276074,"2,258.66",490334648
BIS,The Insolvency Service,06/06/2014,Computer and IT Systems,INFORMATION TECHNOLOGY                                                                              ,COMPUTACENTER (UK) LIMITED,BA0000276175,"5,599.20",490334648
BIS,The Insolvency Service,06/06/2014,Computer and IT Systems,INFORMATION TECHNOLOGY                                                                              ,COMPUTACENTER (UK) LIMITED,BA0000276175,"5,657.29",490334648
BIS,The Insolvency Service,06/06/2014,Computer and IT Systems,INFORMATION TECHNOLOGY                                                                              ,COMPUTACENTER (UK) LIMITED,BA0000276175,"10,432.80",490334648
BIS,The Insolvency Service,06/06/2014,Computer and IT Systems,INFORMATION TECHNOLOGY                                                                              ,COMPUTACENTER (UK) LIMITED,BA0000276175,"359,914.00",490334648
BIS,The Insolvency Service,06/06/2014,Computer and IT Systems,INFORMATION TECHNOLOGY                                                                              ,COMPUTACENTER (UK) LIMITED,BA0000276176,"13,133.76",490334648
BIS,The Insolvency Service,30/06/2014,Computer and IT Systems,INFORMATION TECHNOLOGY                                                                              ,COMPUTACENTER (UK) LIMITED,BA0000276827,"13,430.88",490334648
BIS,The Insolvency Service,18/06/2014,Accommodation,ESTATES,CORONA ENERGY RETAIL 4 LIMITED,BA0000276560,-26.17,714232961
BIS,The Insolvency Service,18/06/2014,Accommodation,ESTATES,CORONA ENERGY RETAIL 4 LIMITED,BA0000276561,36.09,714232961
BIS,The Insolvency Service,18/06/2014,Accommodation,ESTATES,CORONA ENERGY RETAIL 4 LIMITED,BA0000276562,264.78,714232961
BIS,The Insolvency Service,18/06/2014,Accommodation,ESTATES,CORONA ENERGY RETAIL 4 LIMITED,BA0000276563,115.09,714232961
BIS,The Insolvency Service,18/06/2014,Accommodation,ESTATES,CORONA ENERGY RETAIL 4 LIMITED,BA0000276564,117.44,714232961
BIS,The Insolvency Service,18/06/2014,Accommodation,ESTATES,CORONA ENERGY RETAIL 4 LIMITED,BA0000276565,111.29,714232961
BIS,The Insolvency Service,18/06/2014,Accommodation,ESTATES,CORONA ENERGY RETAIL 4 LIMITED,BA0000276566,208.00,714232961
BIS,The Insolvency Service,18/06/2014,Accommodation,ESTATES,CORONA ENERGY RETAIL 4 LIMITED,BA0000276567,85.03,714232961
BIS,The Insolvency Service,03/06/2014,Accommodation,ESTATES,CROYDON COUNCIL,BA0000275998,"1,620.00",218591255
BIS,The Insolvency Service,10/06/2014,Accommodation,ESTATES,DAVID NEALE SURVEYORS LTD,BA0000276269,482.24,
BIS,The Insolvency Service,10/06/2014,Accommodation,ESTATES,DAVID NEALE SURVEYORS LTD,BA0000276270,503.57,
BIS,The Insolvency Service,27/06/2014,Agency Workers,FINANCE AND COMMERCIAL                                                                              ,DEAN SIMPSON                                                ,BA0000276779,40.00,
BIS,The Insolvency Service,27/06/2014,Agency Workers,FINANCE AND COMMERCIAL                                                                              ,DENISE KERR                                                 ,BA0000276776,40.00,
BIS,The Insolvency Service,09/06/2014,Accommodation,ESTATES,DEPARTMENT FOR WORK & PENSIONS,BA0000276242,"6,170.80",888815554
BIS,The Insolvency Service,09/06/2014,Accommodation,ESTATES,DEPARTMENT FOR WORK & PENSIONS,BA0000276241,"1,979.41",888815554
BIS,The Insolvency Service,12/06/2014,Employee Related Costs,FINANCE AND COMMERCIAL                                                                              ,DEREK MORRISON,BA0000276371,182.80,756276990
BIS,The Insolvency Service,01/06/2014,Travel and Subsistence,PEOPLE & CAPABILITY                                                                                 ,DRAKE CIRCUS LP,BA0000276412,12.00,
BIS,The Insolvency Service,27/06/2014,Postage,INFORMATION TECHNOLOGY                                                                              ,DX NETWORK SERVICES LTD,BA0000276763,190.61,849741385
BIS,The Insolvency Service,27/06/2014,Postage,OFFICIAL RECEIVER SERVICES                                                                          ,DX NETWORK SERVICES LTD,BA0000276763,56.05,849741385
BIS,The Insolvency Service,27/06/2014,Postage,OFFICIAL RECEIVER SERVICES                                                                          ,DX NETWORK SERVICES LTD,BA0000276763,58.79,849741385
BIS,The Insolvency Service,27/06/2014,Postage,OFFICIAL RECEIVER SERVICES                                                                          ,DX NETWORK SERVICES LTD,BA0000276763,75.15,849741385
BIS,The Insolvency Service,27/06/2014,Postage,OFFICIAL RECEIVER SERVICES                                                                          ,DX NETWORK SERVICES LTD,BA0000276763,95.49,849741385
BIS,The Insolvency Service,27/06/2014,Postage,OFFICIAL RECEIVER SERVICES                                                                          ,DX NETWORK SERVICES LTD,BA0000276763,102.55,849741385
BIS,The Insolvency Service,27/06/2014,Postage,OFFICIAL RECEIVER SERVICES                                                                          ,DX NETWORK SERVICES LTD,BA0000276763,106.30,849741385
BIS,The Insolvency Service,27/06/2014,Postage,OFFICIAL RECEIVER SERVICES                                                                          ,DX NETWORK SERVICES LTD,BA0000276763,112.86,849741385
BIS,The Insolvency Service,27/06/2014,Postage,OFFICIAL RECEIVER SERVICES                                                                          ,DX NETWORK SERVICES LTD,BA0000276763,117.12,849741385
BIS,The Insolvency Service,27/06/2014,Postage,OFFICIAL RECEIVER SERVICES                                                                          ,DX NETWORK SERVICES LTD,BA0000276763,118.46,849741385
BIS,The Insolvency Service,27/06/2014,Postage,OFFICIAL RECEIVER SERVICES                                                                          ,DX NETWORK SERVICES LTD,BA0000276763,134.03,849741385
BIS,The Insolvency Service,27/06/2014,Postage,OFFICIAL RECEIVER SERVICES                                                                          ,DX NETWORK SERVICES LTD,BA0000276763,151.63,849741385
BIS,The Insolvency Service,27/06/2014,Postage,OFFICIAL RECEIVER SERVICES                                                                          ,DX NETWORK SERVICES LTD,BA0000276763,156.85,849741385
BIS,The Insolvency Service,27/06/2014,Postage,OFFICIAL RECEIVER SERVICES                                                                          ,DX NETWORK SERVICES LTD,BA0000276763,160.15,849741385
BIS,The Insolvency Service,27/06/2014,Postage,OFFICIAL RECEIVER SERVICES                                                                          ,DX NETWORK SERVICES LTD,BA0000276763,179.86,849741385
BIS,The Insolvency Service,27/06/2014,Postage,OFFICIAL RECEIVER SERVICES                                                                          ,DX NETWORK SERVICES LTD,BA0000276763,180.63,849741385
BIS,The Insolvency Service,27/06/2014,Postage,OFFICIAL RECEIVER SERVICES                                                                          ,DX NETWORK SERVICES LTD,BA0000276763,204.01,849741385
BIS,The Insolvency Service,27/06/2014,Postage,OFFICIAL RECEIVER SERVICES                                                                          ,DX NETWORK SERVICES LTD,BA0000276763,208.36,849741385
BIS,The Insolvency Service,27/06/2014,Postage,OFFICIAL RECEIVER SERVICES                                                                          ,DX NETWORK SERVICES LTD,BA0000276763,229.30,849741385
BIS,The Insolvency Service,27/06/2014,Postage,OFFICIAL RECEIVER SERVICES                                                                          ,DX NETWORK SERVICES LTD,BA0000276763,233.12,849741385
BIS,The Insolvency Service,27/06/2014,Postage,OFFICIAL RECEIVER SERVICES                                                                          ,DX NETWORK SERVICES LTD,BA0000276763,243.70,849741385
BIS,The Insolvency Service,27/06/2014,Postage,OFFICIAL RECEIVER SERVICES                                                                          ,DX NETWORK SERVICES LTD,BA0000276763,253.08,849741385
BIS,The Insolvency Service,27/06/2014,Postage,OFFICIAL RECEIVER SERVICES                                                                          ,DX NETWORK SERVICES LTD,BA0000276763,256.78,849741385
BIS,The Insolvency Service,27/06/2014,Postage,OFFICIAL RECEIVER SERVICES                                                                          ,DX NETWORK SERVICES LTD,BA0000276763,299.04,849741385
BIS,The Insolvency Service,27/06/2014,Postage,OFFICIAL RECEIVER SERVICES                                                                          ,DX NETWORK SERVICES LTD,BA0000276763,347.77,849741385
BIS,The Insolvency Service,27/06/2014,Postage,OFFICIAL RECEIVER SERVICES                                                                          ,DX NETWORK SERVICES LTD,BA0000276763,373.46,849741385
BIS,The Insolvency Service,27/06/2014,Postage,OFFICIAL RECEIVER SERVICES                                                                          ,DX NETWORK SERVICES LTD,BA0000276763,476.61,849741385
BIS,The Insolvency Service,27/06/2014,Postage,OFFICIAL RECEIVER SERVICES                                                                          ,DX NETWORK SERVICES LTD,BA0000276763,"1,083.04",849741385
BIS,The Insolvency Service,27/06/2014,Postage,OFFICIAL RECEIVER SERVICES                                                                          ,DX NETWORK SERVICES LTD,BA0000276782,250.00,849741385
BIS,The Insolvency Service,27/06/2014,Postage,OFFICIAL RECEIVER SERVICES                                                                          ,DX NETWORK SERVICES LTD,BA0000276783,262.50,849741385
BIS,The Insolvency Service,11/06/2014,Accommodation,ESTATES,E.ON (LARGE PAYMENTS),BA0000276325,"1,773.62",559097889
BIS,The Insolvency Service,25/06/2014,Accommodation,ESTATES,E.ON (LARGE PAYMENTS),BA0000276646,"1,773.62",559097889
BIS,The Insolvency Service,01/06/2014,Travel and Subsistence,PEOPLE & CAPABILITY                                                                                 ,EAST MIDLANDS TRAINS,BA0000276412,197.20,
BIS,The Insolvency Service,11/06/2014,Accommodation,OFFICIAL RECEIVER SERVICES                                                                          ,EC GROUP,BA0000276337,302.75,235525471
BIS,The Insolvency Service,12/06/2014,Accommodation,BUSINESS SERVICES DIRECTORATE                                                                       ,EC GROUP,BA0000276357,"1,435.59",235525471
BIS,The Insolvency Service,12/06/2014,Accommodation,BUSINESS SERVICES DIRECTORATE                                                                       ,EC GROUP,BA0000276358,"1,005.88",235525471
BIS,The Insolvency Service,30/06/2014,Accommodation,BUSINESS SERVICES DIRECTORATE                                                                       ,EC GROUP,BA0000276819,"1,013.28",235525471
BIS,The Insolvency Service,25/06/2014,Accommodation,FINANCE AND COMMERCIAL                                                                              ,EC HARRIS LLP,BA0000276650,"11,483.16",660476038
BIS,The Insolvency Service,25/06/2014,Accommodation,FINANCE AND COMMERCIAL                                                                              ,EC HARRIS LLP,BA0000276651,"7,363.08",660476038
BIS,The Insolvency Service,25/06/2014,Accommodation,FINANCE AND COMMERCIAL                                                                              ,EC HARRIS LLP,BA0000276661,"7,650.00",660476038
BIS,The Insolvency Service,01/06/2014,Travel and Subsistence,OFFICIAL RECEIVER SERVICES                                                                          ,EC MAINLINE CO T/O,BA0000276412,12.90,
BIS,The Insolvency Service,01/06/2014,Travel and Subsistence,OFFICIAL RECEIVER SERVICES                                                                          ,ECML NEWCASTLE PARKING,BA0000276412,15.00,
BIS,The Insolvency Service,18/06/2014,Accommodation,OFFICIAL RECEIVER SERVICES                                                                          ,EDM - EDM Group Ltd,BA0000276542,8.43,644894202
BIS,The Insolvency Service,18/06/2014,Accommodation,OFFICIAL RECEIVER SERVICES                                                                          ,EDM - EDM Group Ltd,BA0000276543,2.81,644894202
BIS,The Insolvency Service,18/06/2014,Accommodation,OFFICIAL RECEIVER SERVICES                                                                          ,EDM - EDM Group Ltd,BA0000276544,5.62,644894202
BIS,The Insolvency Service,18/06/2014,Accommodation,OFFICIAL RECEIVER SERVICES                                                                          ,EDM - EDM Group Ltd,BA0000276545,2.81,644894202
BIS,The Insolvency Service,18/06/2014,Accommodation,OFFICIAL RECEIVER SERVICES                                                                          ,EDM - EDM Group Ltd,BA0000276546,2.81,644894202
BIS,The Insolvency Service,18/06/2014,Accommodation,OFFICIAL RECEIVER SERVICES                                                                          ,EDM - EDM Group Ltd,BA0000276547,2.81,644894202
BIS,The Insolvency Service,18/06/2014,Accommodation,OFFICIAL RECEIVER SERVICES                                                                          ,EDM - EDM Group Ltd,BA0000276548,2.81,644894202
BIS,The Insolvency Service,18/06/2014,Accommodation,OFFICIAL RECEIVER SERVICES                                                                          ,EDM - EDM Group Ltd,BA0000276549,22.48,644894202
BIS,The Insolvency Service,18/06/2014,Accommodation,OFFICIAL RECEIVER SERVICES                                                                          ,EDM - EDM Group Ltd,BA0000276550,2.81,644894202
BIS,The Insolvency Service,18/06/2014,Accommodation,OFFICIAL RECEIVER SERVICES                                                                          ,EDM - EDM Group Ltd,BA0000276551,3.10,644894202
BIS,The Insolvency Service,18/06/2014,Accommodation,OFFICIAL RECEIVER SERVICES                                                                          ,EDM - EDM Group Ltd,BA0000276552,1.55,644894202
BIS,The Insolvency Service,19/06/2014,Accommodation,OFFICIAL RECEIVER SERVICES                                                                          ,EDM - EDM Group Ltd,BA0000276595,2.81,644894202
BIS,The Insolvency Service,11/06/2014,Telecoms,ESTATES,EE LTD                                                      ,BA0000276343,"6,199.20",771592016
BIS,The Insolvency Service,27/06/2014,Investigation and Enforcement Costs,CUSTOMER AND COMMUNICATIONS                                                                         ,EEF LTD                                                     ,BA0000276689,"1,721.40",941811727
BIS,The Insolvency Service,30/06/2014,Employee Related Costs,PEOPLE & CAPABILITY                                                                                 ,EMPLOYERS' FORUM ON DISABILITY,BA0000276822,"3,840.00",645620736
BIS,The Insolvency Service,01/06/2014,Travel and Subsistence,OFFICIAL RECEIVER SERVICES                                                                          ,ENTERPRISE RENT-A-CAR UK LTD,BA0000276412,-200.00,641634450
BIS,The Insolvency Service,12/06/2014,Insolvency Case Related Costs,FINANCE AND COMMERCIAL                                                                              ,EQUIFAX LTD                                                 ,BA0000276380,4.76,
BIS,The Insolvency Service,12/06/2014,Insolvency Case Related Costs,OFFICIAL RECEIVER SERVICES                                                                          ,EQUIFAX LTD                                                 ,BA0000276364,"16,476.44",
BIS,The Insolvency Service,12/06/2014,Insolvency Case Related Costs,BUSINESS SERVICES DIRECTORATE                                                                       ,EQUIFAX LTD                                                 ,BA0000276364,"1,654.36",
BIS,The Insolvency Service,12/06/2014,Investigation and Enforcement Costs,INVESTIGATIONS & ENFORCEMENT                                                                        ,EQUIFAX LTD                                                 ,BA0000276364,"7,391.00",
BIS,The Insolvency Service,03/06/2014,Legal Costs,FINANCE AND COMMERCIAL                                                                              ,EVERSHEDS  LLP,BA0000276030,"32,942.71",820704559
BIS,The Insolvency Service,06/06/2014,Agency Workers,INFORMATION TECHNOLOGY                                                                              ,EXECUTIVE BANDWIDTH LTD,BA0000276190,"12,537.36",
BIS,The Insolvency Service,10/06/2014,Agency Workers,FINANCE AND COMMERCIAL                                                                              ,EXECUTIVE BANDWIDTH LTD,BA0000276289,"4,344.66",
BIS,The Insolvency Service,03/06/2014,Insolvency Case Related Costs,INVESTIGATIONS & ENFORCEMENT                                                                        ,EXPERIAN QAS LTD,BA0000276014,468.00,887133593
BIS,The Insolvency Service,03/06/2014,Insolvency Case Related Costs,INVESTIGATIONS & ENFORCEMENT                                                                        ,EXPERIAN QAS LTD,BA0000276031,"1,979.34",887133593
BIS,The Insolvency Service,12/06/2014,Insolvency Case Related Costs,OFFICIAL RECEIVER SERVICES                                                                          ,EXPERIAN QAS LTD,BA0000276374,320.40,887133593
BIS,The Insolvency Service,12/06/2014,Insolvency Case Related Costs,OFFICIAL RECEIVER SERVICES                                                                          ,EXPERIAN QAS LTD,BA0000276375,36.00,887133593
BIS,The Insolvency Service,27/06/2014,Insolvency Case Related Costs,INVESTIGATIONS & ENFORCEMENT                                                                        ,EXPERIAN QAS LTD,BA0000276755,"2,025.66",887133593
BIS,The Insolvency Service,30/06/2014,Insolvency Case Related Costs,INVESTIGATIONS & ENFORCEMENT                                                                        ,EXPERIAN QAS LTD,BA0000276850,339.84,887133593
BIS,The Insolvency Service,06/06/2014,Accommodation,ESTATES,F&C REIT ASSET MANAGEMENT PLC,BA0000276172,"70,530.00",209938729
BIS,The Insolvency Service,06/06/2014,Accommodation,ESTATES,F&C REIT ASSET MANAGEMENT PLC,BA0000276172,"20,506.32",209938729
BIS,The Insolvency Service,01/06/2014,Telecoms,BUSINESS SERVICES DIRECTORATE                                                                       ,FASTHOSTS INTERNET,BA0000276412,105.91,
BIS,The Insolvency Service,01/06/2014,Travel and Subsistence,INVESTIGATIONS & ENFORCEMENT                                                                        ,FIRST GTR WESTERN,BA0000276412,11.00,
BIS,The Insolvency Service,01/06/2014,Travel and Subsistence,INVESTIGATIONS & ENFORCEMENT                                                                        ,FIRST GTR WESTERN,BA0000276412,22.00,
BIS,The Insolvency Service,12/06/2014,Accommodation,FINANCE AND COMMERCIAL                                                                              ,FLEXIFORM BUSINESS FURNITURE LTD,BA0000276379,400.80,607217951
BIS,The Insolvency Service,27/06/2014,Department for Business Innovation and Skills,PEOPLE & CAPABILITY                                                                                 ,FLINT BISHOP & BARNETT,BA0000276761,48.00,
BIS,The Insolvency Service,27/06/2014,Legal Costs,PEOPLE & CAPABILITY                                                                                 ,FLINT BISHOP & BARNETT,BA0000276760,229.40,
BIS,The Insolvency Service,11/06/2014,Accommodation,OFFICIAL RECEIVER SERVICES                                                                          ,FRANK G. BOWEN LTD,BA0000276333,102.00,238504366
BIS,The Insolvency Service,11/06/2014,Insolvency Case Related Costs,OFFICIAL RECEIVER SERVICES                                                                          ,FRANK G. BOWEN LTD,BA0000276334,270.00,238504366
BIS,The Insolvency Service,16/06/2014,Insolvency Case Related Costs,OFFICIAL RECEIVER SERVICES                                                                          ,FRANK G. BOWEN LTD,BA0000276473,75.60,238504366
BIS,The Insolvency Service,16/06/2014,Insolvency Case Related Costs,OFFICIAL RECEIVER SERVICES                                                                          ,FRANK G. BOWEN LTD,BA0000276474,75.60,238504366
BIS,The Insolvency Service,16/06/2014,Insolvency Case Related Costs,OFFICIAL RECEIVER SERVICES                                                                          ,FRANK G. BOWEN LTD,BA0000276478,75.60,238504366
BIS,The Insolvency Service,05/06/2014,Computer and IT Systems,BUSINESS SERVICES DIRECTORATE                                                                       ,G4S FIRE & SECURITY SYSTEMS (UK) LTD                        ,BA0000276147,246.42,238560256
BIS,The Insolvency Service,11/06/2014,Telecoms,BUSINESS SERVICES DIRECTORATE                                                                       ,GAMMA BUSINESS COMMUNICATIONS LTD,BA0000276332,0.14,823820344
BIS,The Insolvency Service,11/06/2014,Telecoms,BUSINESS SERVICES DIRECTORATE                                                                       ,GAMMA BUSINESS COMMUNICATIONS LTD,BA0000276332,80.60,823820344
BIS,The Insolvency Service,11/06/2014,Telecoms,BUSINESS SERVICES DIRECTORATE                                                                       ,GAMMA BUSINESS COMMUNICATIONS LTD,BA0000276332,120.38,823820344
BIS,The Insolvency Service,11/06/2014,Telecoms,FINANCE AND COMMERCIAL                                                                              ,GAMMA BUSINESS COMMUNICATIONS LTD,BA0000276332,240.13,823820344
BIS,The Insolvency Service,11/06/2014,Telecoms,FINANCE AND COMMERCIAL                                                                              ,GAMMA BUSINESS COMMUNICATIONS LTD,BA0000276332,425.83,823820344
BIS,The Insolvency Service,11/06/2014,Telecoms,INFORMATION TECHNOLOGY                                                                              ,GAMMA BUSINESS COMMUNICATIONS LTD,BA0000276332,155.06,823820344
BIS,The Insolvency Service,11/06/2014,Telecoms,OFFICIAL RECEIVER SERVICES                                                                          ,GAMMA BUSINESS COMMUNICATIONS LTD,BA0000276332,0.13,823820344
BIS,The Insolvency Service,11/06/2014,Telecoms,OFFICIAL RECEIVER SERVICES                                                                          ,GAMMA BUSINESS COMMUNICATIONS LTD,BA0000276332,47.10,823820344
BIS,The Insolvency Service,11/06/2014,Telecoms,OFFICIAL RECEIVER SERVICES                                                                          ,GAMMA BUSINESS COMMUNICATIONS LTD,BA0000276332,54.01,823820344
BIS,The Insolvency Service,11/06/2014,Telecoms,OFFICIAL RECEIVER SERVICES                                                                          ,GAMMA BUSINESS COMMUNICATIONS LTD,BA0000276332,70.16,823820344
BIS,The Insolvency Service,11/06/2014,Telecoms,OFFICIAL RECEIVER SERVICES                                                                          ,GAMMA BUSINESS COMMUNICATIONS LTD,BA0000276332,82.63,823820344
BIS,The Insolvency Service,11/06/2014,Telecoms,OFFICIAL RECEIVER SERVICES                                                                          ,GAMMA BUSINESS COMMUNICATIONS LTD,BA0000276332,101.46,823820344
BIS,The Insolvency Service,11/06/2014,Telecoms,OFFICIAL RECEIVER SERVICES                                                                          ,GAMMA BUSINESS COMMUNICATIONS LTD,BA0000276332,105.41,823820344
BIS,The Insolvency Service,11/06/2014,Telecoms,OFFICIAL RECEIVER SERVICES                                                                          ,GAMMA BUSINESS COMMUNICATIONS LTD,BA0000276332,108.68,823820344
BIS,The Insolvency Service,11/06/2014,Telecoms,OFFICIAL RECEIVER SERVICES                                                                          ,GAMMA BUSINESS COMMUNICATIONS LTD,BA0000276332,116.70,823820344
BIS,The Insolvency Service,11/06/2014,Telecoms,OFFICIAL RECEIVER SERVICES                                                                          ,GAMMA BUSINESS COMMUNICATIONS LTD,BA0000276332,118.87,823820344
BIS,The Insolvency Service,11/06/2014,Telecoms,OFFICIAL RECEIVER SERVICES                                                                          ,GAMMA BUSINESS COMMUNICATIONS LTD,BA0000276332,148.60,823820344
BIS,The Insolvency Service,11/06/2014,Telecoms,OFFICIAL RECEIVER SERVICES                                                                          ,GAMMA BUSINESS COMMUNICATIONS LTD,BA0000276332,186.68,823820344
BIS,The Insolvency Service,11/06/2014,Telecoms,OFFICIAL RECEIVER SERVICES                                                                          ,GAMMA BUSINESS COMMUNICATIONS LTD,BA0000276332,186.78,823820344
BIS,The Insolvency Service,11/06/2014,Telecoms,OFFICIAL RECEIVER SERVICES                                                                          ,GAMMA BUSINESS COMMUNICATIONS LTD,BA0000276332,186.79,823820344
BIS,The Insolvency Service,11/06/2014,Telecoms,OFFICIAL RECEIVER SERVICES                                                                          ,GAMMA BUSINESS COMMUNICATIONS LTD,BA0000276332,199.16,823820344
BIS,The Insolvency Service,11/06/2014,Telecoms,OFFICIAL RECEIVER SERVICES                                                                          ,GAMMA BUSINESS COMMUNICATIONS LTD,BA0000276332,213.46,823820344
BIS,The Insolvency Service,11/06/2014,Telecoms,OFFICIAL RECEIVER SERVICES                                                                          ,GAMMA BUSINESS COMMUNICATIONS LTD,BA0000276332,228.16,823820344
BIS,The Insolvency Service,11/06/2014,Telecoms,OFFICIAL RECEIVER SERVICES                                                                          ,GAMMA BUSINESS COMMUNICATIONS LTD,BA0000276332,355.68,823820344
BIS,The Insolvency Service,11/06/2014,Accommodation,ESTATES,GARLAND MANAGEMENT LIMITED                                  ,BA0000276344,"5,109.00",523183860
BIS,The Insolvency Service,11/06/2014,Accommodation,FINANCE AND COMMERCIAL                                                                              ,GARLAND MANAGEMENT LIMITED                                  ,BA0000276346,"21,835.20",523183860
BIS,The Insolvency Service,01/06/2014,Computer and IT Systems,FINANCE AND COMMERCIAL,GEOTRUST                                                    ,BA0000276412,156.26,
BIS,The Insolvency Service,02/06/2014,Computer and IT Systems,FINANCE AND COMMERCIAL,GEOTRUST                                                    ,BA0000276412,4.30,
BIS,The Insolvency Service,30/06/2014,Insolvency Case Related Costs,OFFICIAL RECEIVER SERVICES                                                                          ,GLOBAL INVESTIGATIONS LTD,BA0000276860,180.00,700560481
BIS,The Insolvency Service,30/06/2014,Office Supplies and Services,CUSTOMER AND COMMUNICATIONS                                                                         ,GOVDELIVERY INC                                             ,BA0000276838,717.60,
BIS,The Insolvency Service,19/06/2014,Computer and IT Systems,INFORMATION TECHNOLOGY                                                                              ,GRAPHISOFT UK LTD,BA0000276617,"2,002.00",302800021
BIS,The Insolvency Service,01/06/2014,Travel and Subsistence,OFFICIAL RECEIVER SERVICES                                                                          ,GREATER ANGLIA RAILWAY                                      ,BA0000276412,38.60,
BIS,The Insolvency Service,01/06/2014,Accommodation,OFFICIAL RECEIVER SERVICES                                                                          ,GREENHAM TRADING LTD,BA0000276412,81.15,823820932
BIS,The Insolvency Service,01/06/2014,Accommodation,OFFICIAL RECEIVER SERVICES                                                                          ,GREENHAM TRADING LTD,BA0000276412,127.40,823820932
BIS,The Insolvency Service,27/06/2014,Accommodation,ESTATES,GVA                                                         ,BA0000276785,"46,156.50",657719590
BIS,The Insolvency Service,27/06/2014,Accommodation,ESTATES,GVA                                                         ,BA0000276785,"17,637.50",657719590
BIS,The Insolvency Service,05/06/2014,Investigation and Enforcement Costs,INVESTIGATIONS & ENFORCEMENT                                                                        ,HALL MORRICE CHARTERED ACCOUNTANTS                          ,BA0000276143,400.00,268014758
BIS,The Insolvency Service,06/06/2014,Agency Workers,BUSINESS SERVICES DIRECTORATE                                                                       ,HAYS OFFICE SUPPORT,BA0000276165,"1,737.04",243358171
BIS,The Insolvency Service,06/06/2014,Agency Workers,BUSINESS SERVICES DIRECTORATE                                                                       ,HAYS OFFICE SUPPORT,BA0000276165,"1,774.30",243358171
BIS,The Insolvency Service,06/06/2014,Agency Workers,BUSINESS SERVICES DIRECTORATE                                                                       ,HAYS OFFICE SUPPORT,BA0000276165,"2,154.43",243358171
BIS,The Insolvency Service,06/06/2014,Agency Workers,BUSINESS SERVICES DIRECTORATE                                                                       ,HAYS OFFICE SUPPORT,BA0000276165,"3,684.34",243358171
BIS,The Insolvency Service,06/06/2014,Agency Workers,BUSINESS SERVICES DIRECTORATE                                                                       ,HAYS OFFICE SUPPORT,BA0000276165,"4,126.59",243358171
BIS,The Insolvency Service,06/06/2014,Agency Workers,BUSINESS SERVICES DIRECTORATE                                                                       ,HAYS OFFICE SUPPORT,BA0000276165,"6,074.72",243358171
BIS,The Insolvency Service,06/06/2014,Agency Workers,BUSINESS SERVICES DIRECTORATE                                                                       ,HAYS OFFICE SUPPORT,BA0000276165,"7,955.34",243358171
BIS,The Insolvency Service,06/06/2014,Agency Workers,BUSINESS SERVICES DIRECTORATE                                                                       ,HAYS OFFICE SUPPORT,BA0000276165,"10,300.62",243358171
BIS,The Insolvency Service,06/06/2014,Agency Workers,BUSINESS SERVICES DIRECTORATE                                                                       ,HAYS OFFICE SUPPORT,BA0000276165,"10,313.35",243358171
BIS,The Insolvency Service,06/06/2014,Agency Workers,BUSINESS SERVICES DIRECTORATE                                                                       ,HAYS OFFICE SUPPORT,BA0000276165,"12,185.49",243358171
BIS,The Insolvency Service,06/06/2014,Agency Workers,BUSINESS SERVICES DIRECTORATE                                                                       ,HAYS OFFICE SUPPORT,BA0000276165,"13,915.68",243358171
BIS,The Insolvency Service,06/06/2014,Agency Workers,BUSINESS SERVICES DIRECTORATE                                                                       ,HAYS OFFICE SUPPORT,BA0000276165,"26,795.34",243358171
BIS,The Insolvency Service,06/06/2014,Agency Workers,FINANCE AND COMMERCIAL,HAYS OFFICE SUPPORT,BA0000276165,340.80,243358171
BIS,The Insolvency Service,06/06/2014,Agency Workers,FINANCE AND COMMERCIAL                                                                              ,HAYS OFFICE SUPPORT,BA0000276165,"2,470.04",243358171
BIS,The Insolvency Service,06/06/2014,Agency Workers,INFORMATION TECHNOLOGY                                                                              ,HAYS OFFICE SUPPORT,BA0000276165,"21,609.25",243358171
BIS,The Insolvency Service,06/06/2014,Agency Workers,INVESTIGATIONS & ENFORCEMENT                                                                        ,HAYS OFFICE SUPPORT,BA0000276165,"1,991.77",243358171
BIS,The Insolvency Service,06/06/2014,Agency Workers,INVESTIGATIONS & ENFORCEMENT                                                                        ,HAYS OFFICE SUPPORT,BA0000276165,"8,652.72",243358171
BIS,The Insolvency Service,06/06/2014,Agency Workers,OFFICIAL RECEIVER SERVICES                                                                          ,HAYS OFFICE SUPPORT,BA0000276165,277.88,243358171
BIS,The Insolvency Service,06/06/2014,Agency Workers,OFFICIAL RECEIVER SERVICES                                                                          ,HAYS OFFICE SUPPORT,BA0000276165,734.54,243358171
BIS,The Insolvency Service,06/06/2014,Agency Workers,OFFICIAL RECEIVER SERVICES                                                                          ,HAYS OFFICE SUPPORT,BA0000276165,752.15,243358171
BIS,The Insolvency Service,06/06/2014,Agency Workers,OFFICIAL RECEIVER SERVICES                                                                          ,HAYS OFFICE SUPPORT,BA0000276165,"1,311.42",243358171
BIS,The Insolvency Service,06/06/2014,Agency Workers,OFFICIAL RECEIVER SERVICES                                                                          ,HAYS OFFICE SUPPORT,BA0000276165,"1,531.84",243358171
BIS,The Insolvency Service,06/06/2014,Agency Workers,OFFICIAL RECEIVER SERVICES                                                                          ,HAYS OFFICE SUPPORT,BA0000276165,"3,187.35",243358171
BIS,The Insolvency Service,06/06/2014,Agency Workers,OFFICIAL RECEIVER SERVICES                                                                          ,HAYS OFFICE SUPPORT,BA0000276165,"3,312.60",243358171
BIS,The Insolvency Service,06/06/2014,Agency Workers,PEOPLE & CAPABILITY                                                                                 ,HAYS OFFICE SUPPORT,BA0000276165,"1,363.20",243358171
BIS,The Insolvency Service,06/06/2014,Agency Workers,PROJECTS                                                                                            ,HAYS OFFICE SUPPORT,BA0000276165,"6,836.68",243358171
BIS,The Insolvency Service,12/06/2014,Employee Related Costs,PEOPLE & CAPABILITY                                                                                 ,HEALTH MANAGEMENT LTD,BA0000276363,"6,324.90",792250621
BIS,The Insolvency Service,12/06/2014,Employee Related Costs,PEOPLE & CAPABILITY                                                                                 ,HEALTH MANAGEMENT LTD,BA0000276377,700.99,792250621
BIS,The Insolvency Service,12/06/2014,Employee Related Costs,PEOPLE & CAPABILITY                                                                                 ,HEALTH MANAGEMENT LTD,BA0000276378,423.36,792250621
BIS,The Insolvency Service,06/06/2014,Investigation and Enforcement Costs,OFFICIAL RECEIVER SERVICES                                                                          ,HMCTS,BA0000276040,480.00,
BIS,The Insolvency Service,06/06/2014,Investigation and Enforcement Costs,OFFICIAL RECEIVER SERVICES                                                                          ,HMCTS,BA0000276041,480.00,
BIS,The Insolvency Service,13/06/2014,Investigation and Enforcement Costs,OFFICIAL RECEIVER SERVICES                                                                          ,HMCTS,BA0000276272,280.00,
BIS,The Insolvency Service,19/06/2014,Investigation and Enforcement Costs,OFFICIAL RECEIVER SERVICES                                                                          ,HMCTS,BA0000276600,280.00,
BIS,The Insolvency Service,27/06/2014,Investigation and Enforcement Costs,OFFICIAL RECEIVER SERVICES                                                                          ,HMCTS,BA0000276638,280.00,
BIS,The Insolvency Service,30/06/2014,Investigation and Enforcement Costs,OFFICIAL RECEIVER SERVICES                                                                          ,HMCTS,BA0000276835,480.00,
BIS,The Insolvency Service,30/06/2014,Investigation and Enforcement Costs,OFFICIAL RECEIVER SERVICES                                                                          ,HMCTS,BA0000276836,480.00,
BIS,The Insolvency Service,19/06/2014,Investigation and Enforcement Costs,OFFICIAL RECEIVER SERVICES                                                                          ,HMCTS                                                       ,BA0000276601,280.00,
BIS,The Insolvency Service,06/06/2014,Investigation and Enforcement Costs,INVESTIGATIONS & ENFORCEMENT                                                                        ,HOWES PERCIVAL,BA0000276196,49.01,119523573
BIS,The Insolvency Service,06/06/2014,Investigation and Enforcement Costs,INVESTIGATIONS & ENFORCEMENT                                                                        ,HOWES PERCIVAL,BA0000276196,"30,439.81",119523573
BIS,The Insolvency Service,06/06/2014,Investigation and Enforcement Costs,INVESTIGATIONS & ENFORCEMENT                                                                        ,HOWES PERCIVAL,BA0000276197,5.00,119523573
BIS,The Insolvency Service,06/06/2014,Investigation and Enforcement Costs,INVESTIGATIONS & ENFORCEMENT                                                                        ,HOWES PERCIVAL,BA0000276197,"33,950.26",119523573
BIS,The Insolvency Service,06/06/2014,Investigation and Enforcement Costs,INVESTIGATIONS & ENFORCEMENT                                                                        ,HOWES PERCIVAL,BA0000276168,3.00,119523573
BIS,The Insolvency Service,06/06/2014,Investigation and Enforcement Costs,INVESTIGATIONS & ENFORCEMENT                                                                        ,HOWES PERCIVAL,BA0000276168,466.00,119523573
BIS,The Insolvency Service,06/06/2014,Investigation and Enforcement Costs,INVESTIGATIONS & ENFORCEMENT                                                                        ,HOWES PERCIVAL,BA0000276194,50.00,119523573
BIS,The Insolvency Service,06/06/2014,Investigation and Enforcement Costs,INVESTIGATIONS & ENFORCEMENT                                                                        ,HOWES PERCIVAL,BA0000276194,"2,902.00",119523573
BIS,The Insolvency Service,06/06/2014,Investigation and Enforcement Costs,INVESTIGATIONS & ENFORCEMENT                                                                        ,HOWES PERCIVAL,BA0000276195,"12,773.32",119523573
BIS,The Insolvency Service,09/06/2014,Investigation and Enforcement Costs,INVESTIGATIONS & ENFORCEMENT                                                                        ,HOWES PERCIVAL,BA0000276239,58.99,119523573
BIS,The Insolvency Service,09/06/2014,Investigation and Enforcement Costs,INVESTIGATIONS & ENFORCEMENT                                                                        ,HOWES PERCIVAL,BA0000276239,"16,814.39",119523573
BIS,The Insolvency Service,10/06/2014,Investigation and Enforcement Costs,INVESTIGATIONS & ENFORCEMENT                                                                        ,HOWES PERCIVAL,BA0000276280,"4,050.50",119523573
BIS,The Insolvency Service,10/06/2014,Investigation and Enforcement Costs,INVESTIGATIONS & ENFORCEMENT                                                                        ,HOWES PERCIVAL,BA0000276280,"77,886.68",119523573
BIS,The Insolvency Service,11/06/2014,Investigation and Enforcement Costs,INVESTIGATIONS & ENFORCEMENT                                                                        ,HOWES PERCIVAL,BA0000276326,"9,269.40",119523573
BIS,The Insolvency Service,13/06/2014,Investigation and Enforcement Costs,INVESTIGATIONS & ENFORCEMENT                                                                        ,HOWES PERCIVAL,BA0000276408,"12,500.00",
BIS,The Insolvency Service,09/06/2014,Insolvency Case Related Costs,OFFICIAL RECEIVER SERVICES                                                                          ,HPI LTD,BA0000276228,48.58,942407139
BIS,The Insolvency Service,13/06/2014,Insolvency Case Related Costs,OFFICIAL RECEIVER SERVICES                                                                          ,HPI LTD,BA0000276429,95.50,942407139
BIS,The Insolvency Service,13/06/2014,Insolvency Case Related Costs,OFFICIAL RECEIVER SERVICES                                                                          ,HPI LTD,BA0000276422,124.12,942407139
BIS,The Insolvency Service,19/06/2014,Insolvency Case Related Costs,OFFICIAL RECEIVER SERVICES                                                                          ,HPI LTD,BA0000276602,38.74,942407139
BIS,The Insolvency Service,01/06/2014,Travel and Subsistence,FINANCE AND COMMERCIAL,HRG UK,BA0000276412,84.00,
BIS,The Insolvency Service,01/06/2014,Travel and Subsistence,FINANCE AND COMMERCIAL,HRG UK,BA0000276412,285.00,
BIS,The Insolvency Service,01/06/2014,Travel and Subsistence,FINANCE AND COMMERCIAL,HRG UK,BA0000276412,14.79,
BIS,The Insolvency Service,01/06/2014,Travel and Subsistence,FINANCE AND COMMERCIAL,HRG UK,BA0000276412,75.05,
BIS,The Insolvency Service,01/06/2014,Travel and Subsistence,FINANCE AND COMMERCIAL,HRG UK,BA0000276412,105.80,
BIS,The Insolvency Service,01/06/2014,Travel and Subsistence,FINANCE AND COMMERCIAL,HRG UK,BA0000276412,5.62,
BIS,The Insolvency Service,01/06/2014,Travel and Subsistence,FINANCE AND COMMERCIAL,HRG UK,BA0000276412,91.37,
BIS,The Insolvency Service,01/06/2014,Travel and Subsistence,FINANCE AND COMMERCIAL,HRG UK,BA0000276412,-5.62,
BIS,The Insolvency Service,01/06/2014,Travel and Subsistence,FINANCE AND COMMERCIAL,HRG UK,BA0000276412,5.62,
BIS,The Insolvency Service,01/06/2014,Travel and Subsistence,FINANCE AND COMMERCIAL,HRG UK,BA0000276412,5.67,
BIS,The Insolvency Service,01/06/2014,Travel and Subsistence,FINANCE AND COMMERCIAL,HRG UK,BA0000276412,83.53,
BIS,The Insolvency Service,01/06/2014,Travel and Subsistence,FINANCE AND COMMERCIAL,HRG UK,BA0000276412,5.75,
BIS,The Insolvency Service,01/06/2014,Travel and Subsistence,FINANCE AND COMMERCIAL,HRG UK,BA0000276412,5.39,
BIS,The Insolvency Service,01/06/2014,Travel and Subsistence,FINANCE AND COMMERCIAL,HRG UK,BA0000276412,45.80,
BIS,The Insolvency Service,01/06/2014,Travel and Subsistence,FINANCE AND COMMERCIAL,HRG UK,BA0000276412,14.67,
BIS,The Insolvency Service,01/06/2014,Travel and Subsistence,FINANCE AND COMMERCIAL,HRG UK,BA0000276412,92.50,
BIS,The Insolvency Service,01/06/2014,Travel and Subsistence,FINANCE AND COMMERCIAL,HRG UK,BA0000276412,6.43,
BIS,The Insolvency Service,01/06/2014,Travel and Subsistence,FINANCE AND COMMERCIAL,HRG UK,BA0000276412,218.00,
BIS,The Insolvency Service,01/06/2014,Travel and Subsistence,FINANCE AND COMMERCIAL,HRG UK,BA0000276412,-72.00,
BIS,The Insolvency Service,01/06/2014,Travel and Subsistence,FINANCE AND COMMERCIAL,HRG UK,BA0000276412,159.43,
BIS,The Insolvency Service,05/06/2014,Agency Workers,FINANCE AND COMMERCIAL,HUDSON GLOBAL RESOURCES LTD,BA0000276158,"2,247.36",
BIS,The Insolvency Service,06/06/2014,Agency Workers,FINANCE AND COMMERCIAL,HUDSON GLOBAL RESOURCES LTD,BA0000276166,"1,797.89",
BIS,The Insolvency Service,13/06/2014,Agency Workers,FINANCE AND COMMERCIAL,HUDSON GLOBAL RESOURCES LTD,BA0000276405,"2,247.36",
BIS,The Insolvency Service,25/06/2014,Agency Workers,FINANCE AND COMMERCIAL,HUDSON GLOBAL RESOURCES LTD,BA0000276652,"2,134.99",
BIS,The Insolvency Service,27/06/2014,Agency Workers,FINANCE AND COMMERCIAL,HUDSON GLOBAL RESOURCES LTD,BA0000276771,"2,134.99",
BIS,The Insolvency Service,12/06/2014,Computer and IT Systems,INFORMATION TECHNOLOGY                                                                              ,IBM UK LTD,BA0000276367,"7,253.29",107328000
BIS,The Insolvency Service,01/06/2014,Employee Related Costs,PEOPLE & CAPABILITY                                                                                 ,IKEA ONLINE                                                 ,BA0000276412,120.00,
BIS,The Insolvency Service,13/06/2014,Computer and IT Systems,INFORMATION TECHNOLOGY                                                                              ,IMAGESTORE LIMITED                                          ,BA0000276401,"3,264.00",614847430
BIS,The Insolvency Service,25/06/2014,Insolvency Case Related Costs,OFFICIAL RECEIVER SERVICES                                                                          ,INSOLVENCY SERVICE,BA0000276640,40.00,
BIS,The Insolvency Service,02/06/2014,Investigation and Enforcement Costs,OFFICIAL RECEIVER SERVICES                                                                          ,INSOLVENCY SERVICE,BA0000275930,20.00,
BIS,The Insolvency Service,01/06/2014,Travel and Subsistence,OFFICIAL RECEIVER SERVICES                                                                          ,INTERNATIONAL CENT,BA0000276412,2.50,
BIS,The Insolvency Service,19/06/2014,Computer and IT Systems,INFORMATION TECHNOLOGY                                                                              ,INTERQUEST GROUP,BA0000276613,"1,818.72",820437161
BIS,The Insolvency Service,01/06/2014,Employee Related Costs,FINANCE AND COMMERCIAL                                                                              ,IOSH,BA0000276412,117.00,
BIS,The Insolvency Service,05/06/2014,Accommodation,BUSINESS SERVICES DIRECTORATE                                                                       ,IRON MOUNTAIN (UK) LTD,BA0000276120,"2,094.57",607937516
BIS,The Insolvency Service,05/06/2014,Accommodation,CUSTOMER AND COMMUNICATIONS                                                                         ,IRON MOUNTAIN (UK) LTD,BA0000276120,1.46,607937516
BIS,The Insolvency Service,05/06/2014,Accommodation,EXTERNAL AFFAIRS                                                                                    ,IRON MOUNTAIN (UK) LTD,BA0000276120,200.69,607937516
BIS,The Insolvency Service,05/06/2014,Accommodation,INFORMATION TECHNOLOGY                                                                              ,IRON MOUNTAIN (UK) LTD,BA0000276120,215.45,607937516
BIS,The Insolvency Service,05/06/2014,Accommodation,INVESTIGATIONS & ENFORCEMENT                                                                        ,IRON MOUNTAIN (UK) LTD,BA0000276120,"3,068.18",607937516
BIS,The Insolvency Service,05/06/2014,Accommodation,PEOPLE & CAPABILITY                                                                                 ,IRON MOUNTAIN (UK) LTD,BA0000276120,93.86,607937516
BIS,The Insolvency Service,05/06/2014,Accommodation,OFFICIAL RECEIVER SERVICES                                                                          ,IRON MOUNTAIN (UK) LTD,BA0000276120,"25,280.44",607937516
BIS,The Insolvency Service,10/06/2014,Accommodation,BUSINESS SERVICES DIRECTORATE                                                                       ,IRON MOUNTAIN (UK) LTD,BA0000276284,652.26,607937516
BIS,The Insolvency Service,10/06/2014,Accommodation,EXTERNAL AFFAIRS                                                                                    ,IRON MOUNTAIN (UK) LTD,BA0000276284,861.18,607937516
BIS,The Insolvency Service,10/06/2014,Accommodation,EXTERNAL AFFAIRS                                                                                    ,IRON MOUNTAIN (UK) LTD,BA0000276284,"14,364.25",607937516
BIS,The Insolvency Service,10/06/2014,Accommodation,INFORMATION TECHNOLOGY                                                                              ,IRON MOUNTAIN (UK) LTD,BA0000276284,151.42,607937516
BIS,The Insolvency Service,10/06/2014,Accommodation,INVESTIGATIONS & ENFORCEMENT                                                                        ,IRON MOUNTAIN (UK) LTD,BA0000276284,"5,424.83",607937516
BIS,The Insolvency Service,10/06/2014,Accommodation,PEOPLE & CAPABILITY                                                                                 ,IRON MOUNTAIN (UK) LTD,BA0000276284,637.70,607937516
BIS,The Insolvency Service,17/06/2014,Accommodation,INVESTIGATIONS & ENFORCEMENT                                                                        ,IRON MOUNTAIN (UK) LTD,BA0000276501,760.48,607937516
BIS,The Insolvency Service,12/06/2014,Accommodation,FINANCE AND COMMERCIAL                                                                              ,JOHNSONS BUSINESS MOVES,BA0000276384,"8,875.00",
BIS,The Insolvency Service,17/06/2014,Accommodation,ESTATES,JONES LANG LASALLE,BA0000276486,"22,421.54",245894718
BIS,The Insolvency Service,09/06/2014,Investigation and Enforcement Costs,INVESTIGATIONS & ENFORCEMENT                                                                        ,K INTERNATIONAL PLC,BA0000276240,123.41,600413800
BIS,The Insolvency Service,09/06/2014,Translation Costs,BUSINESS SERVICES DIRECTORATE                                                                       ,K INTERNATIONAL PLC,BA0000276240,16.33,600413800
BIS,The Insolvency Service,09/06/2014,Translation Costs,OFFICIAL RECEIVER SERVICES                                                                          ,K INTERNATIONAL PLC,BA0000276240,"2,278.62",600413800
BIS,The Insolvency Service,06/06/2014,Telecoms,OFFICIAL RECEIVER SERVICES                                                                          ,KCOM GROUP PLC,BA0000276178,202.17,647235137
BIS,The Insolvency Service,12/06/2014,Accounting and Banking,FINANCE AND COMMERCIAL,KDS UK LTD,BA0000276349,"2,786.40",776463881
BIS,The Insolvency Service,09/06/2014,Accommodation,ESTATES,KINGSTON (SENATE) LTD,BA0000276220,"41,625.60",140357635
BIS,The Insolvency Service,10/06/2014,Accounting and Banking,FINANCE AND COMMERCIAL,KYPERA LTD,BA0000276291,"6,666.48",813905437
BIS,The Insolvency Service,10/06/2014,Accounting and Banking,FINANCE AND COMMERCIAL,KYPERA LTD,BA0000276292,"6,740.82",813905437
BIS,The Insolvency Service,10/06/2014,Employee Related Costs,PEOPLE & CAPABILITY                                                                                 ,LA FOSSE ASSOCIATES                                         ,BA0000276281,"10,694.38",900389342
BIS,The Insolvency Service,18/06/2014,Employee Related Costs,PEOPLE & CAPABILITY                                                                                 ,LA FOSSE ASSOCIATES                                         ,BA0000276576,"15,139.20",900389342
BIS,The Insolvency Service,12/06/2014,Employee Related Costs,PEOPLE & CAPABILITY                                                                                 ,LEXXIC LTD,BA0000276385,"2,268.00",926419511
BIS,The Insolvency Service,05/06/2014,Accounting and Banking,BUSINESS SERVICES DIRECTORATE                                                                       ,LLOYDS TSB BANK,BA0000276123,"5,000.00",244155576
BIS,The Insolvency Service,03/06/2014,Insolvency Case Related Costs,OFFICIAL RECEIVER SERVICES                                                                          ,LONDON HOUSE INTERNATIONAL LTD,BA0000276013,204.00,650755433
BIS,The Insolvency Service,03/06/2014,Investigation and Enforcement Costs,INVESTIGATIONS & ENFORCEMENT                                                                        ,LONDON HOUSE INTERNATIONAL LTD,BA0000276013,160.00,650755433
BIS,The Insolvency Service,01/06/2014,Travel and Subsistence,OFFICIAL RECEIVER SERVICES                                                                          ,LUL TICKET MACHINE,BA0000276412,8.90,
BIS,The Insolvency Service,01/06/2014,Travel and Subsistence,OFFICIAL RECEIVER SERVICES                                                                          ,LUL TICKET MACHINE,BA0000276412,8.90,
BIS,The Insolvency Service,01/06/2014,Travel and Subsistence,INVESTIGATIONS & ENFORCEMENT                                                                        ,LUL TICKET MACHINE,BA0000276412,20.00,
BIS,The Insolvency Service,01/06/2014,Travel and Subsistence,INVESTIGATIONS & ENFORCEMENT                                                                        ,LUL TICKET MACHINE,BA0000276412,8.90,
BIS,The Insolvency Service,01/06/2014,Travel and Subsistence,OFFICIAL RECEIVER SERVICES                                                                          ,LUL TICKET MACHINE,BA0000276412,9.00,
BIS,The Insolvency Service,01/06/2014,Travel and Subsistence,OFFICIAL RECEIVER SERVICES                                                                          ,LUL TICKET MACHINE,BA0000276412,9.00,
BIS,The Insolvency Service,01/06/2014,Travel and Subsistence,INVESTIGATIONS & ENFORCEMENT                                                                        ,LUL TICKET MACHINE,BA0000276412,20.00,
BIS,The Insolvency Service,01/06/2014,Travel and Subsistence,BUSINESS SERVICES DIRECTORATE                                                                       ,M6 TOLL,BA0000276412,5.50,
BIS,The Insolvency Service,01/06/2014,Travel and Subsistence,BUSINESS SERVICES DIRECTORATE                                                                       ,M6 TOLL,BA0000276412,5.50,
BIS,The Insolvency Service,06/06/2014,Accommodation,ESTATES,MARITIME & COASTGUARD AGENCY,BA0000276092,"21,326.63",
BIS,The Insolvency Service,06/06/2014,Accommodation,ESTATES,MARITIME & COASTGUARD AGENCY,BA0000276092,"13,400.00",
BIS,The Insolvency Service,02/06/2014,Agency Workers,CUSTOMER AND COMMUNICATIONS                                                                         ,MICHAEL PAGE INTERNATIONAL RECRUITMENT LTD,BA0000275944,"2,112.00",354259936
BIS,The Insolvency Service,02/06/2014,Agency Workers,CUSTOMER AND COMMUNICATIONS                                                                         ,MICHAEL PAGE INTERNATIONAL RECRUITMENT LTD,BA0000275931,965.92,354259936
BIS,The Insolvency Service,02/06/2014,Agency Workers,CUSTOMER AND COMMUNICATIONS                                                                         ,MICHAEL PAGE INTERNATIONAL RECRUITMENT LTD,BA0000275945,"1,231.68",354259936
BIS,The Insolvency Service,09/06/2014,Agency Workers,FINANCE AND COMMERCIAL                                                                              ,MICHAEL PAGE INTERNATIONAL RECRUITMENT LTD,BA0000276217,"2,666.40",354259936
BIS,The Insolvency Service,09/06/2014,Agency Workers,CUSTOMER AND COMMUNICATIONS                                                                         ,MICHAEL PAGE INTERNATIONAL RECRUITMENT LTD,BA0000276218,"1,539.60",354259936
BIS,The Insolvency Service,09/06/2014,Agency Workers,CUSTOMER AND COMMUNICATIONS                                                                         ,MICHAEL PAGE INTERNATIONAL RECRUITMENT LTD,BA0000276219,"1,448.88",354259936
BIS,The Insolvency Service,09/06/2014,Agency Workers,CUSTOMER AND COMMUNICATIONS                                                                         ,MICHAEL PAGE INTERNATIONAL RECRUITMENT LTD,BA0000276248,"2,640.00",354259936
BIS,The Insolvency Service,13/06/2014,Agency Workers,FINANCE AND COMMERCIAL                                                                              ,MICHAEL PAGE INTERNATIONAL RECRUITMENT LTD,BA0000276411,"2,666.40",354259936
BIS,The Insolvency Service,17/06/2014,Agency Workers,CUSTOMER AND COMMUNICATIONS                                                                         ,MICHAEL PAGE INTERNATIONAL RECRUITMENT LTD,BA0000276492,"1,529.36",354259936
BIS,The Insolvency Service,17/06/2014,Agency Workers,CUSTOMER AND COMMUNICATIONS                                                                         ,MICHAEL PAGE INTERNATIONAL RECRUITMENT LTD,BA0000276493,"1,539.60",354259936
BIS,The Insolvency Service,19/06/2014,Agency Workers,CUSTOMER AND COMMUNICATIONS                                                                         ,MICHAEL PAGE INTERNATIONAL RECRUITMENT LTD,BA0000276614,"2,640.00",354259936
BIS,The Insolvency Service,25/06/2014,Agency Workers,FINANCE AND COMMERCIAL                                                                              ,MICHAEL PAGE INTERNATIONAL RECRUITMENT LTD,BA0000276656,"2,666.40",354259936
BIS,The Insolvency Service,25/06/2014,Agency Workers,CUSTOMER AND COMMUNICATIONS                                                                         ,MICHAEL PAGE INTERNATIONAL RECRUITMENT LTD,BA0000276641,528.00,354259936
BIS,The Insolvency Service,25/06/2014,Agency Workers,CUSTOMER AND COMMUNICATIONS                                                                         ,MICHAEL PAGE INTERNATIONAL RECRUITMENT LTD,BA0000276654,"1,539.54",354259936
BIS,The Insolvency Service,25/06/2014,Agency Workers,CUSTOMER AND COMMUNICATIONS                                                                         ,MICHAEL PAGE INTERNATIONAL RECRUITMENT LTD,BA0000276655,"1,609.86",354259936
BIS,The Insolvency Service,30/06/2014,Agency Workers,FINANCE AND COMMERCIAL                                                                              ,MICHAEL PAGE INTERNATIONAL RECRUITMENT LTD,BA0000276813,"2,666.40",354259936
BIS,The Insolvency Service,30/06/2014,Agency Workers,CUSTOMER AND COMMUNICATIONS                                                                         ,MICHAEL PAGE INTERNATIONAL RECRUITMENT LTD,BA0000276814,"1,609.86",354259936
BIS,The Insolvency Service,30/06/2014,Agency Workers,CUSTOMER AND COMMUNICATIONS                                                                         ,MICHAEL PAGE INTERNATIONAL RECRUITMENT LTD,BA0000276815,"1,539.54",354259936
BIS,The Insolvency Service,27/06/2014,Agency Workers,FINANCE AND COMMERCIAL                                                                              ,MICHELE ALLEN                                               ,BA0000276778,40.00,
BIS,The Insolvency Service,06/06/2014,Accommodation,ESTATES,MIDDLESBROUGH COUNCIL                                       ,BA0000276179,264.62,734213854
BIS,The Insolvency Service,01/06/2014,Office Supplies and Services,BUSINESS SERVICES DIRECTORATE                                                                       ,MORRISONS                                                   ,BA0000276412,8.00,
BIS,The Insolvency Service,27/06/2014,Agency Workers,FINANCE AND COMMERCIAL                                                                              ,MR COLIN CROW                                               ,BA0000276777,40.00,
BIS,The Insolvency Service,17/06/2014,Legal Costs,BUSINESS SERVICES DIRECTORATE                                                                       ,MR SAUL MARGO                                               ,BA0000276515,576.00,
BIS,The Insolvency Service,01/06/2014,Travel and Subsistence,OFFICIAL RECEIVER SERVICES                                                                          ,NCP PARKING,BA0000276412,6.00,
BIS,The Insolvency Service,01/06/2014,Travel and Subsistence,OFFICIAL RECEIVER SERVICES                                                                          ,NCP PARKING,BA0000276412,2.20,
BIS,The Insolvency Service,05/06/2014,Office Supplies and Services,OFFICIAL RECEIVER SERVICES                                                                          ,NEOPOST LIMITED,BA0000276090,138.38,597265489
BIS,The Insolvency Service,05/06/2014,Office Supplies and Services,OFFICIAL RECEIVER SERVICES                                                                          ,NEOPOST LIMITED,BA0000276144,391.18,597265489
BIS,The Insolvency Service,09/06/2014,Office Supplies and Services,INVESTIGATIONS & ENFORCEMENT                                                                        ,NEOPOST LIMITED,BA0000276251,174.59,597265489
BIS,The Insolvency Service,09/06/2014,Office Supplies and Services,INVESTIGATIONS & ENFORCEMENT                                                                        ,NEOPOST LIMITED,BA0000276253,164.39,597265489
BIS,The Insolvency Service,16/06/2014,Office Supplies and Services,BUSINESS SERVICES DIRECTORATE                                                                       ,NEOPOST LIMITED,BA0000276463,"1,072.80",597265489
BIS,The Insolvency Service,05/06/2014,Postage,BUSINESS SERVICES DIRECTORATE                                                                       ,NEOPOST LTD - FRANKING TOP UPS,BA0000276118,200.00,
BIS,The Insolvency Service,05/06/2014,Postage,BUSINESS SERVICES DIRECTORATE                                                                       ,NEOPOST LTD - FRANKING TOP UPS,BA0000276118,243.00,
BIS,The Insolvency Service,05/06/2014,Postage,BUSINESS SERVICES DIRECTORATE                                                                       ,NEOPOST LTD - FRANKING TOP UPS,BA0000276118,295.00,
BIS,The Insolvency Service,05/06/2014,Postage,BUSINESS SERVICES DIRECTORATE                                                                       ,NEOPOST LTD - FRANKING TOP UPS,BA0000276118,800.00,
BIS,The Insolvency Service,05/06/2014,Postage,BUSINESS SERVICES DIRECTORATE                                                                       ,NEOPOST LTD - FRANKING TOP UPS,BA0000276118,"1,000.00",
BIS,The Insolvency Service,05/06/2014,Postage,INFORMATION TECHNOLOGY                                                                              ,NEOPOST LTD - FRANKING TOP UPS,BA0000276118,"5,000.00",
BIS,The Insolvency Service,05/06/2014,Postage,OFFICIAL RECEIVER SERVICES                                                                          ,NEOPOST LTD - FRANKING TOP UPS,BA0000276118,50.00,
BIS,The Insolvency Service,05/06/2014,Postage,OFFICIAL RECEIVER SERVICES                                                                          ,NEOPOST LTD - FRANKING TOP UPS,BA0000276118,70.00,
BIS,The Insolvency Service,05/06/2014,Postage,OFFICIAL RECEIVER SERVICES                                                                          ,NEOPOST LTD - FRANKING TOP UPS,BA0000276118,100.00,
BIS,The Insolvency Service,05/06/2014,Postage,OFFICIAL RECEIVER SERVICES                                                                          ,NEOPOST LTD - FRANKING TOP UPS,BA0000276118,200.00,
BIS,The Insolvency Service,05/06/2014,Postage,OFFICIAL RECEIVER SERVICES                                                                          ,NEOPOST LTD - FRANKING TOP UPS,BA0000276118,205.00,
BIS,The Insolvency Service,05/06/2014,Postage,OFFICIAL RECEIVER SERVICES                                                                          ,NEOPOST LTD - FRANKING TOP UPS,BA0000276118,230.00,
BIS,The Insolvency Service,05/06/2014,Postage,OFFICIAL RECEIVER SERVICES                                                                          ,NEOPOST LTD - FRANKING TOP UPS,BA0000276118,270.00,
BIS,The Insolvency Service,05/06/2014,Postage,OFFICIAL RECEIVER SERVICES                                                                          ,NEOPOST LTD - FRANKING TOP UPS,BA0000276118,300.00,
BIS,The Insolvency Service,05/06/2014,Postage,OFFICIAL RECEIVER SERVICES                                                                          ,NEOPOST LTD - FRANKING TOP UPS,BA0000276118,600.00,
BIS,The Insolvency Service,05/06/2014,Postage,OFFICIAL RECEIVER SERVICES                                                                          ,NEOPOST LTD - FRANKING TOP UPS,BA0000276118,657.00,
BIS,The Insolvency Service,05/06/2014,Postage,OFFICIAL RECEIVER SERVICES                                                                          ,NEOPOST LTD - FRANKING TOP UPS,BA0000276118,"1,000.00",
BIS,The Insolvency Service,12/06/2014,Postage,BUSINESS SERVICES DIRECTORATE                                                                       ,NEOPOST LTD - FRANKING TOP UPS,BA0000276366,295.00,
BIS,The Insolvency Service,12/06/2014,Postage,BUSINESS SERVICES DIRECTORATE                                                                       ,NEOPOST LTD - FRANKING TOP UPS,BA0000276366,374.00,
BIS,The Insolvency Service,12/06/2014,Postage,BUSINESS SERVICES DIRECTORATE                                                                       ,NEOPOST LTD - FRANKING TOP UPS,BA0000276366,800.00,
BIS,The Insolvency Service,12/06/2014,Postage,OFFICIAL RECEIVER SERVICES                                                                          ,NEOPOST LTD - FRANKING TOP UPS,BA0000276366,70.00,
BIS,The Insolvency Service,12/06/2014,Postage,OFFICIAL RECEIVER SERVICES                                                                          ,NEOPOST LTD - FRANKING TOP UPS,BA0000276366,150.00,
BIS,The Insolvency Service,12/06/2014,Postage,OFFICIAL RECEIVER SERVICES                                                                          ,NEOPOST LTD - FRANKING TOP UPS,BA0000276366,200.00,
BIS,The Insolvency Service,12/06/2014,Postage,OFFICIAL RECEIVER SERVICES                                                                          ,NEOPOST LTD - FRANKING TOP UPS,BA0000276366,200.00,
BIS,The Insolvency Service,12/06/2014,Postage,OFFICIAL RECEIVER SERVICES                                                                          ,NEOPOST LTD - FRANKING TOP UPS,BA0000276366,205.00,
BIS,The Insolvency Service,12/06/2014,Postage,OFFICIAL RECEIVER SERVICES                                                                          ,NEOPOST LTD - FRANKING TOP UPS,BA0000276366,500.00,
BIS,The Insolvency Service,12/06/2014,Postage,OFFICIAL RECEIVER SERVICES                                                                          ,NEOPOST LTD - FRANKING TOP UPS,BA0000276366,526.00,
BIS,The Insolvency Service,12/06/2014,Postage,OFFICIAL RECEIVER SERVICES                                                                          ,NEOPOST LTD - FRANKING TOP UPS,BA0000276366,700.00,
BIS,The Insolvency Service,12/06/2014,Postage,OFFICIAL RECEIVER SERVICES                                                                          ,NEOPOST LTD - FRANKING TOP UPS,BA0000276366,"1,000.00",
BIS,The Insolvency Service,12/06/2014,Postage,OFFICIAL RECEIVER SERVICES                                                                          ,NEOPOST LTD - FRANKING TOP UPS,BA0000276366,"1,000.00",
BIS,The Insolvency Service,12/06/2014,Postage,OFFICIAL RECEIVER SERVICES                                                                          ,NEOPOST LTD - FRANKING TOP UPS,BA0000276366,"1,000.00",
BIS,The Insolvency Service,19/06/2014,Postage,BUSINESS SERVICES DIRECTORATE                                                                       ,NEOPOST LTD - FRANKING TOP UPS,BA0000276607,200.00,
BIS,The Insolvency Service,19/06/2014,Postage,BUSINESS SERVICES DIRECTORATE                                                                       ,NEOPOST LTD - FRANKING TOP UPS,BA0000276607,243.00,
BIS,The Insolvency Service,19/06/2014,Postage,BUSINESS SERVICES DIRECTORATE                                                                       ,NEOPOST LTD - FRANKING TOP UPS,BA0000276607,270.00,
BIS,The Insolvency Service,19/06/2014,Postage,BUSINESS SERVICES DIRECTORATE                                                                       ,NEOPOST LTD - FRANKING TOP UPS,BA0000276607,295.00,
BIS,The Insolvency Service,19/06/2014,Postage,BUSINESS SERVICES DIRECTORATE                                                                       ,NEOPOST LTD - FRANKING TOP UPS,BA0000276607,374.00,
BIS,The Insolvency Service,19/06/2014,Postage,BUSINESS SERVICES DIRECTORATE                                                                       ,NEOPOST LTD - FRANKING TOP UPS,BA0000276607,800.00,
BIS,The Insolvency Service,19/06/2014,Postage,INFORMATION TECHNOLOGY                                                                              ,NEOPOST LTD - FRANKING TOP UPS,BA0000276607,"1,000.00",
BIS,The Insolvency Service,19/06/2014,Postage,INFORMATION TECHNOLOGY                                                                              ,NEOPOST LTD - FRANKING TOP UPS,BA0000276607,"5,000.00",
BIS,The Insolvency Service,19/06/2014,Postage,OFFICIAL RECEIVER SERVICES                                                                          ,NEOPOST LTD - FRANKING TOP UPS,BA0000276607,150.00,
BIS,The Insolvency Service,19/06/2014,Postage,OFFICIAL RECEIVER SERVICES                                                                          ,NEOPOST LTD - FRANKING TOP UPS,BA0000276607,200.00,
BIS,The Insolvency Service,19/06/2014,Postage,OFFICIAL RECEIVER SERVICES                                                                          ,NEOPOST LTD - FRANKING TOP UPS,BA0000276607,205.00,
BIS,The Insolvency Service,19/06/2014,Postage,OFFICIAL RECEIVER SERVICES                                                                          ,NEOPOST LTD - FRANKING TOP UPS,BA0000276607,230.00,
BIS,The Insolvency Service,19/06/2014,Postage,OFFICIAL RECEIVER SERVICES                                                                          ,NEOPOST LTD - FRANKING TOP UPS,BA0000276607,300.00,
BIS,The Insolvency Service,19/06/2014,Postage,OFFICIAL RECEIVER SERVICES                                                                          ,NEOPOST LTD - FRANKING TOP UPS,BA0000276607,500.00,
BIS,The Insolvency Service,19/06/2014,Postage,OFFICIAL RECEIVER SERVICES                                                                          ,NEOPOST LTD - FRANKING TOP UPS,BA0000276607,526.00,
BIS,The Insolvency Service,19/06/2014,Postage,OFFICIAL RECEIVER SERVICES                                                                          ,NEOPOST LTD - FRANKING TOP UPS,BA0000276607,657.00,
BIS,The Insolvency Service,19/06/2014,Postage,OFFICIAL RECEIVER SERVICES                                                                          ,NEOPOST LTD - FRANKING TOP UPS,BA0000276607,750.00,
BIS,The Insolvency Service,30/06/2014,Postage,BUSINESS SERVICES DIRECTORATE                                                                       ,NEOPOST LTD - FRANKING TOP UPS,BA0000276817,200.00,
BIS,The Insolvency Service,30/06/2014,Postage,BUSINESS SERVICES DIRECTORATE                                                                       ,NEOPOST LTD - FRANKING TOP UPS,BA0000276817,270.00,
BIS,The Insolvency Service,30/06/2014,Postage,BUSINESS SERVICES DIRECTORATE                                                                       ,NEOPOST LTD - FRANKING TOP UPS,BA0000276817,295.00,
BIS,The Insolvency Service,30/06/2014,Postage,BUSINESS SERVICES DIRECTORATE                                                                       ,NEOPOST LTD - FRANKING TOP UPS,BA0000276817,420.00,
BIS,The Insolvency Service,30/06/2014,Postage,BUSINESS SERVICES DIRECTORATE                                                                       ,NEOPOST LTD - FRANKING TOP UPS,BA0000276817,800.00,
BIS,The Insolvency Service,30/06/2014,Postage,BUSINESS SERVICES DIRECTORATE                                                                       ,NEOPOST LTD - FRANKING TOP UPS,BA0000276845,29.50,
BIS,The Insolvency Service,30/06/2014,Postage,BUSINESS SERVICES DIRECTORATE                                                                       ,NEOPOST LTD - FRANKING TOP UPS,BA0000276845,200.00,
BIS,The Insolvency Service,30/06/2014,Postage,BUSINESS SERVICES DIRECTORATE                                                                       ,NEOPOST LTD - FRANKING TOP UPS,BA0000276845,243.00,
BIS,The Insolvency Service,30/06/2014,Postage,BUSINESS SERVICES DIRECTORATE                                                                       ,NEOPOST LTD - FRANKING TOP UPS,BA0000276845,270.00,
BIS,The Insolvency Service,30/06/2014,Postage,BUSINESS SERVICES DIRECTORATE                                                                       ,NEOPOST LTD - FRANKING TOP UPS,BA0000276845,800.00,
BIS,The Insolvency Service,30/06/2014,Postage,INFORMATION TECHNOLOGY                                                                              ,NEOPOST LTD - FRANKING TOP UPS,BA0000276817,"1,000.00",
BIS,The Insolvency Service,30/06/2014,Postage,INFORMATION TECHNOLOGY                                                                              ,NEOPOST LTD - FRANKING TOP UPS,BA0000276817,"5,000.00",
BIS,The Insolvency Service,30/06/2014,Postage,INFORMATION TECHNOLOGY                                                                              ,NEOPOST LTD - FRANKING TOP UPS,BA0000276845,"1,000.00",
BIS,The Insolvency Service,30/06/2014,Postage,OFFICIAL RECEIVER SERVICES                                                                          ,NEOPOST LTD - FRANKING TOP UPS,BA0000276817,150.00,
BIS,The Insolvency Service,30/06/2014,Postage,OFFICIAL RECEIVER SERVICES                                                                          ,NEOPOST LTD - FRANKING TOP UPS,BA0000276817,200.00,
BIS,The Insolvency Service,30/06/2014,Postage,OFFICIAL RECEIVER SERVICES                                                                          ,NEOPOST LTD - FRANKING TOP UPS,BA0000276817,205.00,
BIS,The Insolvency Service,30/06/2014,Postage,OFFICIAL RECEIVER SERVICES                                                                          ,NEOPOST LTD - FRANKING TOP UPS,BA0000276817,230.00,
BIS,The Insolvency Service,30/06/2014,Postage,OFFICIAL RECEIVER SERVICES                                                                          ,NEOPOST LTD - FRANKING TOP UPS,BA0000276817,300.00,
BIS,The Insolvency Service,30/06/2014,Postage,OFFICIAL RECEIVER SERVICES                                                                          ,NEOPOST LTD - FRANKING TOP UPS,BA0000276817,580.00,
BIS,The Insolvency Service,30/06/2014,Postage,OFFICIAL RECEIVER SERVICES                                                                          ,NEOPOST LTD - FRANKING TOP UPS,BA0000276817,600.00,
BIS,The Insolvency Service,30/06/2014,Postage,OFFICIAL RECEIVER SERVICES                                                                          ,NEOPOST LTD - FRANKING TOP UPS,BA0000276817,700.00,
BIS,The Insolvency Service,30/06/2014,Postage,OFFICIAL RECEIVER SERVICES                                                                          ,NEOPOST LTD - FRANKING TOP UPS,BA0000276817,"1,000.00",
BIS,The Insolvency Service,30/06/2014,Postage,OFFICIAL RECEIVER SERVICES                                                                          ,NEOPOST LTD - FRANKING TOP UPS,BA0000276817,"1,000.00",
BIS,The Insolvency Service,30/06/2014,Postage,OFFICIAL RECEIVER SERVICES                                                                          ,NEOPOST LTD - FRANKING TOP UPS,BA0000276817,"1,000.00",
BIS,The Insolvency Service,30/06/2014,Postage,OFFICIAL RECEIVER SERVICES                                                                          ,NEOPOST LTD - FRANKING TOP UPS,BA0000276845,20.50,
BIS,The Insolvency Service,30/06/2014,Postage,OFFICIAL RECEIVER SERVICES                                                                          ,NEOPOST LTD - FRANKING TOP UPS,BA0000276845,150.00,
BIS,The Insolvency Service,30/06/2014,Postage,OFFICIAL RECEIVER SERVICES                                                                          ,NEOPOST LTD - FRANKING TOP UPS,BA0000276845,200.00,
BIS,The Insolvency Service,30/06/2014,Postage,OFFICIAL RECEIVER SERVICES                                                                          ,NEOPOST LTD - FRANKING TOP UPS,BA0000276845,230.00,
BIS,The Insolvency Service,30/06/2014,Postage,OFFICIAL RECEIVER SERVICES                                                                          ,NEOPOST LTD - FRANKING TOP UPS,BA0000276845,300.00,
BIS,The Insolvency Service,30/06/2014,Postage,OFFICIAL RECEIVER SERVICES                                                                          ,NEOPOST LTD - FRANKING TOP UPS,BA0000276845,600.00,
BIS,The Insolvency Service,30/06/2014,Postage,OFFICIAL RECEIVER SERVICES                                                                          ,NEOPOST LTD - FRANKING TOP UPS,BA0000276845,657.00,
BIS,The Insolvency Service,30/06/2014,Postage,OFFICIAL RECEIVER SERVICES                                                                          ,NEOPOST LTD - FRANKING TOP UPS,BA0000276845,700.00,
BIS,The Insolvency Service,30/06/2014,Postage,OFFICIAL RECEIVER SERVICES                                                                          ,NEOPOST LTD - FRANKING TOP UPS,BA0000276845,750.00,
BIS,The Insolvency Service,30/06/2014,Postage,OFFICIAL RECEIVER SERVICES                                                                          ,NEOPOST LTD - FRANKING TOP UPS,BA0000276845,"1,000.00",
BIS,The Insolvency Service,30/06/2014,Postage,OFFICIAL RECEIVER SERVICES                                                                          ,NEOPOST LTD - FRANKING TOP UPS,BA0000276845,"1,000.00",
BIS,The Insolvency Service,30/06/2014,Postage,OFFICIAL RECEIVER SERVICES                                                                          ,NEOPOST LTD - FRANKING TOP UPS,BA0000276845,"1,000.00",
BIS,The Insolvency Service,06/06/2014,Agency Workers,INFORMATION TECHNOLOGY                                                                              ,NETWORKERS INTERNATIONAL PLC,BA0000276173,"2,278.42",766375002
BIS,The Insolvency Service,13/06/2014,Agency Workers,FINANCE AND COMMERCIAL,NETWORKERS INTERNATIONAL PLC,BA0000276402,"2,594.64",766375002
BIS,The Insolvency Service,30/06/2014,Agency Workers,FINANCE AND COMMERCIAL,NETWORKERS INTERNATIONAL PLC,BA0000276818,"1,945.98",766375002
BIS,The Insolvency Service,03/06/2014,Investigation and Enforcement Costs,CUSTOMER AND COMMUNICATIONS                                                                         ,NEWSPAPER LICENSING AGENCY,BA0000276033,"18,241.75",661865215
BIS,The Insolvency Service,17/06/2014,Computer and IT Systems,INFORMATION TECHNOLOGY                                                                              ,NINE TELECOM,BA0000276504,538.64,886132113
BIS,The Insolvency Service,25/06/2014,Accommodation,ESTATES,NORTHAMPTONSHIRE COUNTY COUNCIL,BA0000276645,301.00,
BIS,The Insolvency Service,01/06/2014,Travel and Subsistence,FINANCE AND COMMERCIAL                                                                              ,NORTHERN RAIL,BA0000276412,79.70,
BIS,The Insolvency Service,05/06/2014,Computer and IT Systems,BUSINESS SERVICES DIRECTORATE                                                                       ,NORTHGATE INFORMATION SOLUTIONS UK LTD.,BA0000276071,"8,400.00",207588545
BIS,The Insolvency Service,05/06/2014,Computer and IT Systems,BUSINESS SERVICES DIRECTORATE                                                                       ,NORTHGATE INFORMATION SOLUTIONS UK LTD.,BA0000276072,"34,266.32",207588545
BIS,The Insolvency Service,05/06/2014,Computer and IT Systems,PROJECTS                                                                                            ,NORTHGATE INFORMATION SOLUTIONS UK LTD.,BA0000276156,"141,552.72",207588545
BIS,The Insolvency Service,09/06/2014,Computer and IT Systems,PROJECTS                                                                                            ,NORTHGATE INFORMATION SOLUTIONS UK LTD.,BA0000276234,952.20,207588545
BIS,The Insolvency Service,09/06/2014,Computer and IT Systems,INFORMATION TECHNOLOGY                                                                              ,NORTHGATE INFORMATION SOLUTIONS UK LTD.,BA0000276223,"6,408.46",207588545
BIS,The Insolvency Service,09/06/2014,Computer and IT Systems,INFORMATION TECHNOLOGY                                                                              ,NORTHGATE INFORMATION SOLUTIONS UK LTD.,BA0000276223,"78,297.27",207588545
BIS,The Insolvency Service,09/06/2014,Computer and IT Systems,INFORMATION TECHNOLOGY                                                                              ,NORTHGATE INFORMATION SOLUTIONS UK LTD.,BA0000276224,"-6,408.46",207588545
BIS,The Insolvency Service,17/06/2014,Computer and IT Systems,BUSINESS SERVICES DIRECTORATE                                                                       ,NORTHGATE INFORMATION SOLUTIONS UK LTD.,BA0000276481,"5,078.40",207588545
BIS,The Insolvency Service,17/06/2014,Computer and IT Systems,PROJECTS                                                                                            ,NORTHGATE INFORMATION SOLUTIONS UK LTD.,BA0000276482,"1,904.40",207588545
BIS,The Insolvency Service,03/06/2014,Accommodation,ESTATES,NPOWER         ,BA0000276005,251.63,
BIS,The Insolvency Service,10/06/2014,Accommodation,ESTATES,NPOWER BUSINESS,BA0000276275,"2,006.75",768362492
BIS,The Insolvency Service,10/06/2014,Accommodation,ESTATES,NPOWER BUSINESS,BA0000276276,"1,671.68",768362492
BIS,The Insolvency Service,18/06/2014,Accommodation,ESTATES,NPOWER BUSINESS,BA0000276578,"4,913.22",768362492
BIS,The Insolvency Service,18/06/2014,Accommodation,ESTATES,NPOWER BUSINESS,BA0000276579,"4,458.74",768362492
BIS,The Insolvency Service,11/06/2014,Telecoms,BUSINESS SERVICES DIRECTORATE                                                                       ,O2 (UK) LTD,BA0000276338,42.12,778603785
BIS,The Insolvency Service,11/06/2014,Telecoms,INVESTIGATIONS & ENFORCEMENT                                                                        ,O2 (UK) LTD,BA0000276338,42.12,778603785
BIS,The Insolvency Service,01/06/2014,Insolvency Case Related Costs,FINANCE AND COMMERCIAL                                                                              ,OFFICE FOR NATIONAL STATISTICS,BA0000276412,125.00,GD460
BIS,The Insolvency Service,05/06/2014,Computer and IT Systems,INFORMATION TECHNOLOGY                                                                              ,OPEN OBJECTS SOFTWARE LTD.,BA0000276157,"4,993.92",
BIS,The Insolvency Service,01/06/2014,Travel and Subsistence,OFFICIAL RECEIVER SERVICES                                                                          ,OYSTER AUTO TOP UP,BA0000276412,20.00,
BIS,The Insolvency Service,01/06/2014,Travel and Subsistence,OFFICIAL RECEIVER SERVICES                                                                          ,OYSTER AUTO TOP UP,BA0000276412,20.00,
BIS,The Insolvency Service,01/06/2014,Travel and Subsistence,FINANCE AND COMMERCIAL                                                                              ,OYSTER AUTO TOP UP,BA0000276412,20.00,
BIS,The Insolvency Service,01/06/2014,Travel and Subsistence,OFFICIAL RECEIVER SERVICES                                                                          ,OYSTER AUTO TOP UP,BA0000276412,20.00,
BIS,The Insolvency Service,01/06/2014,Travel and Subsistence,OFFICIAL RECEIVER SERVICES                                                                          ,OYSTER AUTO TOP UP,BA0000276412,20.00,
BIS,The Insolvency Service,01/06/2014,Office Supplies and Services,OFFICIAL RECEIVER SERVICES                                                                          ,PAXTON ACCESS LTD                                           ,BA0000276412,175.20,423167374
BIS,The Insolvency Service,05/06/2014,Conferences,CUSTOMER AND COMMUNICATIONS                                                                         ,PHILPOTTS                  ,BA0000276091,262.50,
BIS,The Insolvency Service,05/06/2014,Conferences,CUSTOMER AND COMMUNICATIONS                                                                         ,PHILPOTTS                           ,BA0000276148,41.40,
BIS,The Insolvency Service,01/06/2014,Computer and IT Systems,BUSINESS SERVICES DIRECTORATE                                                                       ,PLUSNET PLC,BA0000276412,34.19,
BIS,The Insolvency Service,01/06/2014,Office Supplies and Services,FINANCE AND COMMERCIAL                                                                              ,POST AND PACKING LTD                                        ,BA0000276412,63.54,
BIS,The Insolvency Service,01/06/2014,Office Supplies and Services,FINANCE AND COMMERCIAL                                                                              ,POST AND PACKING LTD                                        ,BA0000276412,63.54,
BIS,The Insolvency Service,01/06/2014,Postage,FINANCE AND COMMERCIAL                                                                              ,POST OFFICE LTD,BA0000276412,700.00,
BIS,The Insolvency Service,01/06/2014,Postage,OFFICIAL RECEIVER SERVICES                                                                          ,POST OFFICE LTD,BA0000276412,6.47,
BIS,The Insolvency Service,01/06/2014,Postage,OFFICIAL RECEIVER SERVICES                                                                          ,POST OFFICE LTD,BA0000276412,5.97,
BIS,The Insolvency Service,01/06/2014,Accommodation,FINANCE AND COMMERCIAL                                                                              ,POSTURITE (UK) LTD.,BA0000276412,626.84,
BIS,The Insolvency Service,01/06/2014,Accommodation,FINANCE AND COMMERCIAL                                                                              ,POSTURITE (UK) LTD.,BA0000276412,26.41,
BIS,The Insolvency Service,01/06/2014,Accommodation,FINANCE AND COMMERCIAL                                                                              ,POSTURITE (UK) LTD.,BA0000276412,242.71,
BIS,The Insolvency Service,01/06/2014,Employee Related Costs,PEOPLE & CAPABILITY                                                                                 ,POSTURITE (UK) LTD.,BA0000276412,342.00,
BIS,The Insolvency Service,01/06/2014,Employee Related Costs,PEOPLE & CAPABILITY                                                                                 ,POSTURITE (UK) LTD.,BA0000276412,739.36,
BIS,The Insolvency Service,01/06/2014,Employee Related Costs,PEOPLE & CAPABILITY                                                                                 ,POSTURITE (UK) LTD.,BA0000276412,915.91,
BIS,The Insolvency Service,01/06/2014,Employee Related Costs,PEOPLE & CAPABILITY                                                                                 ,POSTURITE (UK) LTD.,BA0000276412,842.83,
BIS,The Insolvency Service,01/06/2014,Employee Related Costs,PEOPLE & CAPABILITY                                                                                 ,POSTURITE (UK) LTD.,BA0000276412,876.80,
BIS,The Insolvency Service,01/06/2014,Employee Related Costs,PEOPLE & CAPABILITY                                                                                 ,POSTURITE (UK) LTD.,BA0000276412,326.94,
BIS,The Insolvency Service,01/06/2014,Employee Related Costs,PEOPLE & CAPABILITY                                                                                 ,POSTURITE (UK) LTD.,BA0000276412,770.82,
BIS,The Insolvency Service,01/06/2014,Employee Related Costs,PEOPLE & CAPABILITY                                                                                 ,POSTURITE (UK) LTD.,BA0000276412,845.64,
BIS,The Insolvency Service,01/06/2014,Employee Related Costs,PEOPLE & CAPABILITY                                                                                 ,POSTURITE (UK) LTD.,BA0000276412,117.25,
BIS,The Insolvency Service,01/06/2014,Employee Related Costs,PEOPLE & CAPABILITY                                                                                 ,POSTURITE (UK) LTD.,BA0000276412,174.36,
BIS,The Insolvency Service,10/06/2014,Accommodation,ESTATES,PPH COMMERCIAL,BA0000276285,"4,967.94",894414007
BIS,The Insolvency Service,10/06/2014,Accommodation,ESTATES,PPH COMMERCIAL,BA0000276286,"3,073.28",894414007
BIS,The Insolvency Service,06/06/2014,Accounting and Banking,FINANCE AND COMMERCIAL,PPS,BA0000276165,395.49,
BIS,The Insolvency Service,06/06/2014,Accounting and Banking,FINANCE AND COMMERCIAL,PPS,BA0000276165,"1,937.58",
BIS,The Insolvency Service,05/06/2014,Investigation and Enforcement Costs,CUSTOMER AND COMMUNICATIONS                                                                         ,PRECISE MEDIA MONITORING LTD AKA ENERGY DATA SERVICES LTD,BA0000276149,621.26,849092202
BIS,The Insolvency Service,30/06/2014,Investigation and Enforcement Costs,CUSTOMER AND COMMUNICATIONS                                                                         ,PRECISE MEDIA MONITORING LTD AKA ENERGY DATA SERVICES LTD,BA0000276829,978.06,849092202
BIS,The Insolvency Service,01/06/2014,Travel and Subsistence,PEOPLE & CAPABILITY                                                                                 ,PREMIER INN                                                 ,BA0000276412,226.25,
BIS,The Insolvency Service,01/06/2014,Office Supplies and Services,FINANCE AND COMMERCIAL                                                                              ,PRET A MANGER (EUROPE) LIMITED                              ,BA0000276412,70.10,927137420
BIS,The Insolvency Service,27/06/2014,Agency Workers,FINANCE AND COMMERCIAL                                                                              ,QADEER HUSSAIN                                              ,BA0000276780,40.00,
BIS,The Insolvency Service,09/06/2014,Investigation and Enforcement Costs,CUSTOMER AND COMMUNICATIONS                                                                         ,QUADRANGLE RESEARCH GROUP LIMITED                           ,BA0000276226,"35,815.92",853217042
BIS,The Insolvency Service,11/06/2014,Investigation and Enforcement Costs,CUSTOMER AND COMMUNICATIONS                                                                         ,QUADRANGLE RESEARCH GROUP LIMITED                           ,BA0000276347,"18,406.80",853217042
BIS,The Insolvency Service,18/06/2014,Training Costs,PEOPLE & CAPABILITY                                                                                 ,QUADRILECT LIMITED,BA0000276536,75.00,791480605
BIS,The Insolvency Service,30/06/2014,Travel and Subsistence,EXTERNAL AFFAIRS                                                                                    ,R3,BA0000276864,432.00,577549778
BIS,The Insolvency Service,18/06/2014,Agency Workers,INFORMATION TECHNOLOGY                                                                              ,RE THINK RECRUITMENT SOLUTIONS LTD,BA0000276553,549.38,905139440
BIS,The Insolvency Service,11/06/2014,Computer and IT Systems,BUSINESS SERVICES DIRECTORATE                                                                       ,RE THINK RECRUITMENT SOLUTIONS LTD,BA0000276327,"9,888.91",905139440
BIS,The Insolvency Service,13/06/2014,Employee Related Costs,PEOPLE & CAPABILITY                                                                                 ,RIGHT MANAGEMENT WORKPLACE WELLNESS                         ,BA0000276449,661.21,
BIS,The Insolvency Service,17/06/2014,Training Costs,FINANCE AND COMMERCIAL                                                                              ,ROFFEY PARK INSTITUTE LIMITED,BA0000276502,329.17,
BIS,The Insolvency Service,17/06/2014,Training Costs,FINANCE AND COMMERCIAL                                                                              ,ROFFEY PARK INSTITUTE LIMITED,BA0000276503,131.66,
BIS,The Insolvency Service,01/06/2014,Insolvency Case Related Costs,OFFICIAL RECEIVER SERVICES                                                                          ,ROLLS BUILDING,BA0000276412,30.00,
BIS,The Insolvency Service,02/06/2014,Insolvency Case Related Costs,OFFICIAL RECEIVER SERVICES                                                                          ,ROYAL MAIL,BA0000275959,"17,220.00",
BIS,The Insolvency Service,05/06/2014,Office Supplies and Services,OFFICIAL RECEIVER SERVICES                                                                          ,ROYAL MAIL GROUP LTD,BA0000276154,83.33,243170002
BIS,The Insolvency Service,06/06/2014,Office Supplies and Services,OFFICIAL RECEIVER SERVICES                                                                          ,ROYAL MAIL GROUP LTD,BA0000276187,83.33,243170002
BIS,The Insolvency Service,02/06/2014,Postage,OFFICIAL RECEIVER SERVICES                                                                          ,ROYAL MAIL GROUP LTD,BA0000275936,19.52,243170002
BIS,The Insolvency Service,03/06/2014,Postage,OFFICIAL RECEIVER SERVICES                                                                          ,ROYAL MAIL GROUP LTD,BA0000276006,68.14,243170002
BIS,The Insolvency Service,05/06/2014,Postage,BUSINESS SERVICES DIRECTORATE                                                                       ,ROYAL MAIL GROUP LTD,BA0000276139,45.00,243170002
BIS,The Insolvency Service,05/06/2014,Postage,FINANCE AND COMMERCIAL                                                                              ,ROYAL MAIL GROUP LTD,BA0000276089,81.31,243170002
BIS,The Insolvency Service,05/06/2014,Postage,OFFICIAL RECEIVER SERVICES                                                                          ,ROYAL MAIL GROUP LTD,BA0000276150,196.00,243170002
BIS,The Insolvency Service,05/06/2014,Postage,OFFICIAL RECEIVER SERVICES                                                                          ,ROYAL MAIL GROUP LTD,BA0000276153,14.74,243170002
BIS,The Insolvency Service,09/06/2014,Postage,OFFICIAL RECEIVER SERVICES                                                                          ,ROYAL MAIL GROUP LTD,BA0000276231,10.22,243170002
BIS,The Insolvency Service,09/06/2014,Postage,OFFICIAL RECEIVER SERVICES                                                                          ,ROYAL MAIL GROUP LTD,BA0000276235,15.75,243170002
BIS,The Insolvency Service,11/06/2014,Postage,OFFICIAL RECEIVER SERVICES                                                                          ,ROYAL MAIL GROUP LTD,BA0000276339,90.00,243170002
BIS,The Insolvency Service,19/06/2014,Postage,OFFICIAL RECEIVER SERVICES                                                                          ,ROYAL MAIL GROUP LTD,BA0000276611,"1,358.20",243170002
BIS,The Insolvency Service,25/06/2014,Postage,OFFICIAL RECEIVER SERVICES                                                                          ,ROYAL MAIL GROUP LTD,BA0000276626,25.71,243170002
BIS,The Insolvency Service,25/06/2014,Postage,OFFICIAL RECEIVER SERVICES                                                                          ,ROYAL MAIL GROUP LTD,BA0000276639,90.26,243170002
BIS,The Insolvency Service,25/06/2014,Postage,ESTATES,ROYAL MAIL GROUP LTD,BA0000276642,0.36,243170002
BIS,The Insolvency Service,25/06/2014,Postage,FINANCE AND COMMERCIAL                                                                              ,ROYAL MAIL GROUP LTD,BA0000276662,253.00,243170002
BIS,The Insolvency Service,25/06/2014,Postage,FINANCE AND COMMERCIAL                                                                              ,ROYAL MAIL GROUP LTD,BA0000276663,90.00,243170002
BIS,The Insolvency Service,25/06/2014,Postage,FINANCE AND COMMERCIAL                                                                              ,ROYAL MAIL GROUP LTD,BA0000276664,90.00,243170002
BIS,The Insolvency Service,25/06/2014,Postage,OFFICIAL RECEIVER SERVICES                                                                          ,ROYAL MAIL GROUP LTD,BA0000276643,66.61,243170002
BIS,The Insolvency Service,30/06/2014,Postage,OFFICIAL RECEIVER SERVICES                                                                          ,ROYAL MAIL GROUP LTD,BA0000276858,787.00,243170002
BIS,The Insolvency Service,01/06/2014,Travel and Subsistence,OFFICIAL RECEIVER SERVICES                                                                          ,SAINSBURY'S S/MKT,BA0000276412,25.00,
BIS,The Insolvency Service,30/06/2014,Accommodation,ESTATES,SAVILLS COMMERCIAL LTD,BA0000276191,-242.72,922945804
BIS,The Insolvency Service,30/06/2014,Accommodation,ESTATES,SAVILLS COMMERCIAL LTD,BA0000276192,-566.34,922945804
BIS,The Insolvency Service,02/06/2014,Accommodation,ESTATES,SCOTTISH POWER,BA0000275934,749.10,659372008
BIS,The Insolvency Service,11/06/2014,Accommodation,FINANCE AND COMMERCIAL                                                                              ,SDT INTERNATIONAL LTD,BA0000276345,"4,711.20",909273609
BIS,The Insolvency Service,11/06/2014,Accommodation,FINANCE AND COMMERCIAL                                                                              ,SDT INTERNATIONAL LTD,BA0000276341,-194.40,909273609
BIS,The Insolvency Service,10/06/2014,Investigation and Enforcement Costs,INVESTIGATIONS & ENFORCEMENT                                                                        ,SHEPHERD & WEDDERBURN WS,BA0000276274,33.00,890559386
BIS,The Insolvency Service,10/06/2014,Investigation and Enforcement Costs,INVESTIGATIONS & ENFORCEMENT                                                                        ,SHEPHERD & WEDDERBURN WS,BA0000276274,"39,111.38",890559386
BIS,The Insolvency Service,10/06/2014,Investigation and Enforcement Costs,INVESTIGATIONS & ENFORCEMENT                                                                        ,SHEPHERD & WEDDERBURN WS,BA0000276274,16.03,890559386
BIS,The Insolvency Service,10/06/2014,Investigation and Enforcement Costs,INVESTIGATIONS & ENFORCEMENT                                                                        ,SHEPHERD & WEDDERBURN WS,BA0000276274,"14,212.30",890559386
BIS,The Insolvency Service,10/06/2014,Investigation and Enforcement Costs,INVESTIGATIONS & ENFORCEMENT                                                                        ,SHEPHERD & WEDDERBURN WS,BA0000276274,0.15,890559386
BIS,The Insolvency Service,10/06/2014,Investigation and Enforcement Costs,INVESTIGATIONS & ENFORCEMENT                                                                        ,SHEPHERD & WEDDERBURN WS,BA0000276274,"1,294.35",890559386
BIS,The Insolvency Service,03/06/2014,Insolvency Case Related Costs,OFFICIAL RECEIVER SERVICES                                                                          ,SIRS (EUROPE) LTD,BA0000276032,"8,841.48",990834974
BIS,The Insolvency Service,03/06/2014,Investigation and Enforcement Costs,INVESTIGATIONS & ENFORCEMENT                                                                        ,SIRS (EUROPE) LTD,BA0000276032,"1,800.00",990834974
BIS,The Insolvency Service,01/06/2014,Computer and IT Systems,INFORMATION TECHNOLOGY                                                                              ,SKY                                                         ,BA0000276412,31.17,
BIS,The Insolvency Service,25/06/2014,Computer and IT Systems,INFORMATION TECHNOLOGY                                                                              ,SKYSCAPE CLOUD SERVICES                                     ,BA0000276653,"1,336.86",122134958
BIS,The Insolvency Service,01/06/2014,Travel and Subsistence,OFFICIAL RECEIVER SERVICES                                                                          ,SOUTHEND ON SEA BOROUGH COUNCIL,BA0000276412,1.60,
BIS,The Insolvency Service,03/06/2014,Agency Workers,CUSTOMER AND COMMUNICATIONS                                                                         ,SPRING TECHNOLOGY STAFFING,BA0000276017,"1,512.00",
BIS,The Insolvency Service,02/06/2014,Computer and IT Systems,INFORMATION TECHNOLOGY                                                                              ,SPRING TECHNOLOGY STAFFING,BA0000275954,"3,281.16",
BIS,The Insolvency Service,03/06/2014,Computer and IT Systems,INFORMATION TECHNOLOGY                                                                              ,SPRING TECHNOLOGY STAFFING,BA0000276024,"2,419.03",
BIS,The Insolvency Service,16/06/2014,Computer and IT Systems,INFORMATION TECHNOLOGY                                                                              ,SPRING TECHNOLOGY STAFFING,BA0000276464,"2,845.92",
BIS,The Insolvency Service,30/06/2014,Computer and IT Systems,INFORMATION TECHNOLOGY                                                                              ,SPRING TECHNOLOGY STAFFING,BA0000276848,"3,415.10",
BIS,The Insolvency Service,30/06/2014,Computer and IT Systems,INFORMATION TECHNOLOGY                                                                              ,SPRING TECHNOLOGY STAFFING,BA0000276862,"2,486.28",
BIS,The Insolvency Service,30/06/2014,Computer and IT Systems,INFORMATION TECHNOLOGY                                                                              ,SPRING TECHNOLOGY STAFFING,BA0000276866,"2,486.28",
BIS,The Insolvency Service,30/06/2014,Computer and IT Systems,INFORMATION TECHNOLOGY                                                                              ,SPRING TECHNOLOGY STAFFING,BA0000276867,"2,845.92",
BIS,The Insolvency Service,30/06/2014,Computer and IT Systems,INFORMATION TECHNOLOGY                                                                              ,SPRING TECHNOLOGY STAFFING,BA0000276859,"2,486.28",
BIS,The Insolvency Service,19/06/2014,Investigation and Enforcement Costs,INVESTIGATIONS & ENFORCEMENT                                                                        ,SSP HEALTH                                                  ,BA0000276603,10.00,
BIS,The Insolvency Service,12/06/2014,Accommodation,FINANCE AND COMMERCIAL                                                                              ,ST MATTHEWS WESTMINSTER                                     ,BA0000276368,150.40,736148330
BIS,The Insolvency Service,30/06/2014,Accommodation,FINANCE AND COMMERCIAL                                                                              ,ST MATTHEWS WESTMINSTER                                     ,BA0000276863,47.04,736148330
BIS,The Insolvency Service,16/06/2014,Accommodation,OFFICIAL RECEIVER SERVICES                                                                          ,Staff Payment,BA0000276470,8.99,
BIS,The Insolvency Service,05/06/2014,Accounting and Banking,FINANCE AND COMMERCIAL,Staff Payment,BA0000276126,11.38,
BIS,The Insolvency Service,12/06/2014,Accounting and Banking,FINANCE AND COMMERCIAL,Staff Payment,BA0000276376,11.38,
BIS,The Insolvency Service,02/06/2014,Employee Related Costs,PEOPLE & CAPABILITY                                                                                 ,Staff Payment,BA0000275927,100.00,
BIS,The Insolvency Service,02/06/2014,Employee Related Costs,PEOPLE & CAPABILITY                                                                                 ,Staff Payment,BA0000275927,114.95,
BIS,The Insolvency Service,02/06/2014,Employee Related Costs,PEOPLE & CAPABILITY                                                                                 ,Staff Payment,BA0000275927,90.00,
BIS,The Insolvency Service,03/06/2014,Employee Related Costs,OFFICIAL RECEIVER SERVICES                                                                          ,Staff Payment,BA0000276001,6.20,
BIS,The Insolvency Service,06/06/2014,Employee Related Costs,PEOPLE & CAPABILITY                                                                                 ,Staff Payment,BA0000276193,205.00,
BIS,The Insolvency Service,06/06/2014,Employee Related Costs,OFFICIAL RECEIVER SERVICES                                                                          ,Staff Payment,BA0000276193,22.00,
BIS,The Insolvency Service,09/06/2014,Employee Related Costs,PEOPLE & CAPABILITY                                                                                 ,Staff Payment,BA0000276254,100.00,
BIS,The Insolvency Service,09/06/2014,Employee Related Costs,PEOPLE & CAPABILITY                                                                                 ,Staff Payment,BA0000276254,86.25,
BIS,The Insolvency Service,12/06/2014,Employee Related Costs,FINANCE AND COMMERCIAL                                                                              ,Staff Payment,BA0000276372,151.00,
BIS,The Insolvency Service,12/06/2014,Employee Related Costs,PEOPLE & CAPABILITY                                                                                 ,Staff Payment,BA0000276376,190.00,
BIS,The Insolvency Service,12/06/2014,Employee Related Costs,PEOPLE & CAPABILITY                                                                                 ,Staff Payment,BA0000276376,35.00,
BIS,The Insolvency Service,12/06/2014,Employee Related Costs,PEOPLE & CAPABILITY                                                                                 ,Staff Payment,BA0000276376,69.00,
BIS,The Insolvency Service,12/06/2014,Employee Related Costs,PEOPLE & CAPABILITY                                                                                 ,Staff Payment,BA0000276376,90.00,
BIS,The Insolvency Service,12/06/2014,Employee Related Costs,PEOPLE & CAPABILITY                                                                                 ,Staff Payment,BA0000276376,90.00,
BIS,The Insolvency Service,12/06/2014,Employee Related Costs,PEOPLE & CAPABILITY                                                                                 ,Staff Payment,BA0000276376,34.00,
BIS,The Insolvency Service,12/06/2014,Employee Related Costs,PEOPLE & CAPABILITY                                                                                 ,Staff Payment,BA0000276376,100.00,
BIS,The Insolvency Service,16/06/2014,Employee Related Costs,FINANCE AND COMMERCIAL                                                                              ,Staff Payment,BA0000276470,21.00,
BIS,The Insolvency Service,25/06/2014,Employee Related Costs,OFFICIAL RECEIVER SERVICES                                                                          ,Staff Payment,BA0000276670,219.30,
BIS,The Insolvency Service,25/06/2014,Employee Related Costs,PEOPLE & CAPABILITY                                                                                 ,Staff Payment,BA0000276670,25.00,
BIS,The Insolvency Service,25/06/2014,Employee Related Costs,PEOPLE & CAPABILITY                                                                                 ,Staff Payment,BA0000276670,90.00,
BIS,The Insolvency Service,27/06/2014,Employee Related Costs,OFFICIAL RECEIVER SERVICES                                                                          ,Staff Payment,BA0000276687,3.00,
BIS,The Insolvency Service,30/06/2014,Employee Related Costs,BUSINESS SERVICES DIRECTORATE                                                                       ,Staff Payment,BA0000276823,18.50,
BIS,The Insolvency Service,30/06/2014,Employee Related Costs,INVESTIGATIONS & ENFORCEMENT                                                                        ,Staff Payment,BA0000276823,60.65,
BIS,The Insolvency Service,05/06/2014,Insolvency Case Related Costs,INVESTIGATIONS & ENFORCEMENT                                                                        ,Staff Payment,BA0000276068,14.00,
BIS,The Insolvency Service,05/06/2014,Insolvency Case Related Costs,INVESTIGATIONS & ENFORCEMENT                                                                        ,Staff Payment,BA0000276068,28.00,
BIS,The Insolvency Service,05/06/2014,Insolvency Case Related Costs,OFFICIAL RECEIVER SERVICES                                                                          ,Staff Payment,BA0000276126,7.00,
BIS,The Insolvency Service,11/06/2014,Insolvency Case Related Costs,INVESTIGATIONS & ENFORCEMENT                                                                        ,Staff Payment,BA0000276328,7.00,
BIS,The Insolvency Service,18/06/2014,Insolvency Case Related Costs,INVESTIGATIONS & ENFORCEMENT                                                                        ,Staff Payment,BA0000276572,7.00,
BIS,The Insolvency Service,18/06/2014,Insolvency Case Related Costs,INVESTIGATIONS & ENFORCEMENT                                                                        ,Staff Payment,BA0000276572,7.00,
BIS,The Insolvency Service,18/06/2014,Insolvency Case Related Costs,INVESTIGATIONS & ENFORCEMENT                                                                        ,Staff Payment,BA0000276572,7.00,
BIS,The Insolvency Service,19/06/2014,Insolvency Case Related Costs,INVESTIGATIONS & ENFORCEMENT                                                                        ,Staff Payment,BA0000276590,7.00,
BIS,The Insolvency Service,25/06/2014,Insolvency Case Related Costs,INVESTIGATIONS & ENFORCEMENT                                                                        ,Staff Payment,BA0000276668,7.00,
BIS,The Insolvency Service,10/06/2014,Office Supplies and Services,OFFICIAL RECEIVER SERVICES                                                                          ,Staff Payment,BA0000276294,14.34,
BIS,The Insolvency Service,16/06/2014,Office Supplies and Services,OFFICIAL RECEIVER SERVICES                                                                          ,Staff Payment,BA0000276470,104.24,
BIS,The Insolvency Service,18/06/2014,Office Supplies and Services,PROJECTS                                                                                            ,Staff Payment,BA0000276571,7.00,
BIS,The Insolvency Service,25/06/2014,Office Supplies and Services,OFFICIAL RECEIVER SERVICES                                                                          ,Staff Payment,BA0000276668,11.00,
BIS,The Insolvency Service,30/06/2014,Office Supplies and Services,BUSINESS SERVICES DIRECTORATE                                                                       ,Staff Payment,BA0000276823,5.00,
BIS,The Insolvency Service,05/06/2014,Telecoms,INFORMATION TECHNOLOGY                                                                              ,Staff Payment,BA0000276126,70.35,
BIS,The Insolvency Service,10/06/2014,Telecoms,INFORMATION TECHNOLOGY                                                                              ,Staff Payment,BA0000276294,25.03,
BIS,The Insolvency Service,18/06/2014,Telecoms,INFORMATION TECHNOLOGY                                                                              ,Staff Payment,BA0000276572,32.77,
BIS,The Insolvency Service,25/06/2014,Telecoms,INFORMATION TECHNOLOGY                                                                              ,Staff Payment,BA0000276670,69.84,
BIS,The Insolvency Service,25/06/2014,Telecoms,INFORMATION TECHNOLOGY                                                                              ,Staff Payment,BA0000276670,15.99,
BIS,The Insolvency Service,18/06/2014,Training Costs,PEOPLE & CAPABILITY                                                                                 ,Staff Payment,BA0000276572,165.00,
BIS,The Insolvency Service,02/06/2014,Travel and Subsistence,FINANCE AND COMMERCIAL                                                                              ,Staff Payment,BA0000275927,9.70,
BIS,The Insolvency Service,02/06/2014,Travel and Subsistence,FINANCE AND COMMERCIAL                                                                              ,Staff Payment,BA0000275927,5.00,
BIS,The Insolvency Service,02/06/2014,Travel and Subsistence,BUSINESS SERVICES DIRECTORATE                                                                       ,Staff Payment,BA0000275927,64.95,
BIS,The Insolvency Service,02/06/2014,Travel and Subsistence,INVESTIGATIONS & ENFORCEMENT                                                                        ,Staff Payment,BA0000275927,7.50,
BIS,The Insolvency Service,02/06/2014,Travel and Subsistence,INVESTIGATIONS & ENFORCEMENT                                                                        ,Staff Payment,BA0000275927,13.20,
BIS,The Insolvency Service,02/06/2014,Travel and Subsistence,INVESTIGATIONS & ENFORCEMENT                                                                        ,Staff Payment,BA0000275927,25.20,
BIS,The Insolvency Service,02/06/2014,Travel and Subsistence,OFFICIAL RECEIVER SERVICES                                                                          ,Staff Payment,BA0000275927,11.40,
BIS,The Insolvency Service,02/06/2014,Travel and Subsistence,BUSINESS SERVICES DIRECTORATE                                                                       ,Staff Payment,BA0000275927,5.00,
BIS,The Insolvency Service,02/06/2014,Travel and Subsistence,BUSINESS SERVICES DIRECTORATE                                                                       ,Staff Payment,BA0000275927,244.35,
BIS,The Insolvency Service,02/06/2014,Travel and Subsistence,INVESTIGATIONS & ENFORCEMENT                                                                        ,Staff Payment,BA0000275927,6.75,
BIS,The Insolvency Service,02/06/2014,Travel and Subsistence,INVESTIGATIONS & ENFORCEMENT                                                                        ,Staff Payment,BA0000275927,9.00,
BIS,The Insolvency Service,02/06/2014,Travel and Subsistence,INVESTIGATIONS & ENFORCEMENT                                                                        ,Staff Payment,BA0000275927,11.50,
BIS,The Insolvency Service,02/06/2014,Travel and Subsistence,INVESTIGATIONS & ENFORCEMENT                                                                        ,Staff Payment,BA0000275927,16.00,
BIS,The Insolvency Service,02/06/2014,Travel and Subsistence,INVESTIGATIONS & ENFORCEMENT                                                                        ,Staff Payment,BA0000275927,42.30,
BIS,The Insolvency Service,02/06/2014,Travel and Subsistence,INVESTIGATIONS & ENFORCEMENT                                                                        ,Staff Payment,BA0000275927,37.80,
BIS,The Insolvency Service,02/06/2014,Travel and Subsistence,INVESTIGATIONS & ENFORCEMENT                                                                        ,Staff Payment,BA0000275927,53.55,
BIS,The Insolvency Service,02/06/2014,Travel and Subsistence,OFFICIAL RECEIVER SERVICES                                                                          ,Staff Payment,BA0000275927,20.00,
BIS,The Insolvency Service,02/06/2014,Travel and Subsistence,OFFICIAL RECEIVER SERVICES                                                                          ,Staff Payment,BA0000275927,8.00,
BIS,The Insolvency Service,02/06/2014,Travel and Subsistence,OFFICIAL RECEIVER SERVICES                                                                          ,Staff Payment,BA0000275927,8.10,
BIS,The Insolvency Service,02/06/2014,Travel and Subsistence,OFFICIAL RECEIVER SERVICES                                                                          ,Staff Payment,BA0000275927,4.30,
BIS,The Insolvency Service,02/06/2014,Travel and Subsistence,OFFICIAL RECEIVER SERVICES                                                                          ,Staff Payment,BA0000275927,87.75,
BIS,The Insolvency Service,02/06/2014,Travel and Subsistence,PEOPLE & CAPABILITY                                                                                 ,Staff Payment,BA0000275927,12.00,
BIS,The Insolvency Service,02/06/2014,Travel and Subsistence,PEOPLE & CAPABILITY                                                                                 ,Staff Payment,BA0000275927,49.00,
BIS,The Insolvency Service,02/06/2014,Travel and Subsistence,BUSINESS SERVICES DIRECTORATE                                                                       ,Staff Payment,BA0000275927,34.15,
BIS,The Insolvency Service,02/06/2014,Travel and Subsistence,INVESTIGATIONS & ENFORCEMENT                                                                        ,Staff Payment,BA0000275927,61.45,
BIS,The Insolvency Service,02/06/2014,Travel and Subsistence,INVESTIGATIONS & ENFORCEMENT                                                                        ,Staff Payment,BA0000275927,33.24,
BIS,The Insolvency Service,02/06/2014,Travel and Subsistence,INVESTIGATIONS & ENFORCEMENT                                                                        ,Staff Payment,BA0000275927,9.31,
BIS,The Insolvency Service,02/06/2014,Travel and Subsistence,INVESTIGATIONS & ENFORCEMENT                                                                        ,Staff Payment,BA0000275927,27.50,
BIS,The Insolvency Service,02/06/2014,Travel and Subsistence,OFFICIAL RECEIVER SERVICES                                                                          ,Staff Payment,BA0000275927,3.00,
BIS,The Insolvency Service,02/06/2014,Travel and Subsistence,OFFICIAL RECEIVER SERVICES                                                                          ,Staff Payment,BA0000275927,7.70,
BIS,The Insolvency Service,02/06/2014,Travel and Subsistence,OFFICIAL RECEIVER SERVICES                                                                          ,Staff Payment,BA0000275927,8.00,
BIS,The Insolvency Service,02/06/2014,Travel and Subsistence,OFFICIAL RECEIVER SERVICES                                                                          ,Staff Payment,BA0000275927,30.00,
BIS,The Insolvency Service,03/06/2014,Travel and Subsistence,BUSINESS SERVICES DIRECTORATE                                                                       ,Staff Payment,BA0000276001,27.90,
BIS,The Insolvency Service,03/06/2014,Travel and Subsistence,BUSINESS SERVICES DIRECTORATE                                                                       ,Staff Payment,BA0000276001,39.60,
BIS,The Insolvency Service,03/06/2014,Travel and Subsistence,BUSINESS SERVICES DIRECTORATE                                                                       ,Staff Payment,BA0000276001,39.60,
BIS,The Insolvency Service,03/06/2014,Travel and Subsistence,FINANCE AND COMMERCIAL                                                                              ,Staff Payment,BA0000276001,40.00,
BIS,The Insolvency Service,03/06/2014,Travel and Subsistence,BUSINESS SERVICES DIRECTORATE                                                                       ,Staff Payment,BA0000276001,49.84,
BIS,The Insolvency Service,03/06/2014,Travel and Subsistence,FINANCE AND COMMERCIAL                                                                              ,Staff Payment,BA0000276001,20.00,
BIS,The Insolvency Service,03/06/2014,Travel and Subsistence,BUSINESS SERVICES DIRECTORATE                                                                       ,Staff Payment,BA0000276001,3.00,
BIS,The Insolvency Service,03/06/2014,Travel and Subsistence,INVESTIGATIONS & ENFORCEMENT                                                                        ,Staff Payment,BA0000276001,58.80,
BIS,The Insolvency Service,03/06/2014,Travel and Subsistence,INVESTIGATIONS & ENFORCEMENT                                                                        ,Staff Payment,BA0000276001,3.10,
BIS,The Insolvency Service,03/06/2014,Travel and Subsistence,INVESTIGATIONS & ENFORCEMENT                                                                        ,Staff Payment,BA0000276001,20.00,
BIS,The Insolvency Service,03/06/2014,Travel and Subsistence,INVESTIGATIONS & ENFORCEMENT                                                                        ,Staff Payment,BA0000276001,2.90,
BIS,The Insolvency Service,03/06/2014,Travel and Subsistence,OFFICIAL RECEIVER SERVICES                                                                          ,Staff Payment,BA0000276001,3.20,
BIS,The Insolvency Service,03/06/2014,Travel and Subsistence,OFFICIAL RECEIVER SERVICES                                                                          ,Staff Payment,BA0000276001,26.60,
BIS,The Insolvency Service,03/06/2014,Travel and Subsistence,PEOPLE & CAPABILITY                                                                                 ,Staff Payment,BA0000276001,8.90,
BIS,The Insolvency Service,03/06/2014,Travel and Subsistence,PEOPLE & CAPABILITY                                                                                 ,Staff Payment,BA0000276001,17.90,
BIS,The Insolvency Service,03/06/2014,Travel and Subsistence,BUSINESS SERVICES DIRECTORATE                                                                       ,Staff Payment,BA0000276001,272.70,
BIS,The Insolvency Service,03/06/2014,Travel and Subsistence,BUSINESS SERVICES DIRECTORATE                                                                       ,Staff Payment,BA0000276001,3.00,
BIS,The Insolvency Service,03/06/2014,Travel and Subsistence,BUSINESS SERVICES DIRECTORATE                                                                       ,Staff Payment,BA0000276001,67.50,
BIS,The Insolvency Service,03/06/2014,Travel and Subsistence,INVESTIGATIONS & ENFORCEMENT                                                                        ,Staff Payment,BA0000276001,15.00,
BIS,The Insolvency Service,03/06/2014,Travel and Subsistence,INVESTIGATIONS & ENFORCEMENT                                                                        ,Staff Payment,BA0000276001,229.50,
BIS,The Insolvency Service,03/06/2014,Travel and Subsistence,INVESTIGATIONS & ENFORCEMENT                                                                        ,Staff Payment,BA0000276001,17.55,
BIS,The Insolvency Service,03/06/2014,Travel and Subsistence,INVESTIGATIONS & ENFORCEMENT                                                                        ,Staff Payment,BA0000276001,20.70,
BIS,The Insolvency Service,03/06/2014,Travel and Subsistence,OFFICIAL RECEIVER SERVICES                                                                          ,Staff Payment,BA0000276001,2.50,
BIS,The Insolvency Service,03/06/2014,Travel and Subsistence,OFFICIAL RECEIVER SERVICES                                                                          ,Staff Payment,BA0000276001,96.30,
BIS,The Insolvency Service,03/06/2014,Travel and Subsistence,OFFICIAL RECEIVER SERVICES                                                                          ,Staff Payment,BA0000276001,54.30,
BIS,The Insolvency Service,03/06/2014,Travel and Subsistence,OFFICIAL RECEIVER SERVICES                                                                          ,Staff Payment,BA0000276001,15.75,
BIS,The Insolvency Service,03/06/2014,Travel and Subsistence,OFFICIAL RECEIVER SERVICES                                                                          ,Staff Payment,BA0000276001,67.93,
BIS,The Insolvency Service,03/06/2014,Travel and Subsistence,OFFICIAL RECEIVER SERVICES                                                                          ,Staff Payment,BA0000276001,12.15,
BIS,The Insolvency Service,03/06/2014,Travel and Subsistence,OFFICIAL RECEIVER SERVICES                                                                          ,Staff Payment,BA0000276001,5.20,
BIS,The Insolvency Service,03/06/2014,Travel and Subsistence,OFFICIAL RECEIVER SERVICES                                                                          ,Staff Payment,BA0000276001,5.00,
BIS,The Insolvency Service,03/06/2014,Travel and Subsistence,OFFICIAL RECEIVER SERVICES                                                                          ,Staff Payment,BA0000276001,17.33,
BIS,The Insolvency Service,03/06/2014,Travel and Subsistence,OFFICIAL RECEIVER SERVICES                                                                          ,Staff Payment,BA0000276001,2.00,
BIS,The Insolvency Service,03/06/2014,Travel and Subsistence,OFFICIAL RECEIVER SERVICES                                                                          ,Staff Payment,BA0000276001,12.00,
BIS,The Insolvency Service,03/06/2014,Travel and Subsistence,BUSINESS SERVICES DIRECTORATE                                                                       ,Staff Payment,BA0000276001,62.97,
BIS,The Insolvency Service,03/06/2014,Travel and Subsistence,BUSINESS SERVICES DIRECTORATE                                                                       ,Staff Payment,BA0000276001,9.39,
BIS,The Insolvency Service,03/06/2014,Travel and Subsistence,BUSINESS SERVICES DIRECTORATE                                                                       ,Staff Payment,BA0000276001,30.00,
BIS,The Insolvency Service,03/06/2014,Travel and Subsistence,BUSINESS SERVICES DIRECTORATE                                                                       ,Staff Payment,BA0000276001,5.00,
BIS,The Insolvency Service,03/06/2014,Travel and Subsistence,BUSINESS SERVICES DIRECTORATE                                                                       ,Staff Payment,BA0000276001,75.63,
BIS,The Insolvency Service,03/06/2014,Travel and Subsistence,INVESTIGATIONS & ENFORCEMENT                                                                        ,Staff Payment,BA0000276001,11.00,
BIS,The Insolvency Service,03/06/2014,Travel and Subsistence,INVESTIGATIONS & ENFORCEMENT                                                                        ,Staff Payment,BA0000276001,5.00,
BIS,The Insolvency Service,03/06/2014,Travel and Subsistence,INVESTIGATIONS & ENFORCEMENT                                                                        ,Staff Payment,BA0000276001,4.74,
BIS,The Insolvency Service,03/06/2014,Travel and Subsistence,INVESTIGATIONS & ENFORCEMENT                                                                        ,Staff Payment,BA0000276001,46.02,
BIS,The Insolvency Service,03/06/2014,Travel and Subsistence,INVESTIGATIONS & ENFORCEMENT                                                                        ,Staff Payment,BA0000276001,5.00,
BIS,The Insolvency Service,03/06/2014,Travel and Subsistence,INVESTIGATIONS & ENFORCEMENT                                                                        ,Staff Payment,BA0000276001,5.00,
BIS,The Insolvency Service,03/06/2014,Travel and Subsistence,OFFICIAL RECEIVER SERVICES                                                                          ,Staff Payment,BA0000276001,2.75,
BIS,The Insolvency Service,03/06/2014,Travel and Subsistence,OFFICIAL RECEIVER SERVICES                                                                          ,Staff Payment,BA0000276001,4.41,
BIS,The Insolvency Service,03/06/2014,Travel and Subsistence,OFFICIAL RECEIVER SERVICES                                                                          ,Staff Payment,BA0000276001,3.95,
BIS,The Insolvency Service,03/06/2014,Travel and Subsistence,OFFICIAL RECEIVER SERVICES                                                                          ,Staff Payment,BA0000276001,5.00,
BIS,The Insolvency Service,03/06/2014,Travel and Subsistence,PEOPLE & CAPABILITY                                                                                 ,Staff Payment,BA0000276001,31.22,
BIS,The Insolvency Service,03/06/2014,Travel and Subsistence,PEOPLE & CAPABILITY                                                                                 ,Staff Payment,BA0000276001,5.00,
BIS,The Insolvency Service,05/06/2014,Travel and Subsistence,OFFICIAL RECEIVER SERVICES                                                                          ,Staff Payment,BA0000276126,69.95,
BIS,The Insolvency Service,05/06/2014,Travel and Subsistence,PEOPLE & CAPABILITY                                                                                 ,Staff Payment,BA0000276068,45.65,
BIS,The Insolvency Service,05/06/2014,Travel and Subsistence,FINANCE AND COMMERCIAL                                                                              ,Staff Payment,BA0000276126,10.70,
BIS,The Insolvency Service,05/06/2014,Travel and Subsistence,INVESTIGATIONS & ENFORCEMENT                                                                        ,Staff Payment,BA0000276068,2.50,
BIS,The Insolvency Service,05/06/2014,Travel and Subsistence,INVESTIGATIONS & ENFORCEMENT                                                                        ,Staff Payment,BA0000276068,4.40,
BIS,The Insolvency Service,05/06/2014,Travel and Subsistence,INVESTIGATIONS & ENFORCEMENT                                                                        ,Staff Payment,BA0000276068,1.45,
BIS,The Insolvency Service,05/06/2014,Travel and Subsistence,INVESTIGATIONS & ENFORCEMENT                                                                        ,Staff Payment,BA0000276126,4.00,
BIS,The Insolvency Service,05/06/2014,Travel and Subsistence,INVESTIGATIONS & ENFORCEMENT                                                                        ,Staff Payment,BA0000276126,9.00,
BIS,The Insolvency Service,05/06/2014,Travel and Subsistence,OFFICIAL RECEIVER SERVICES                                                                          ,Staff Payment,BA0000276126,4.40,
BIS,The Insolvency Service,05/06/2014,Travel and Subsistence,PEOPLE & CAPABILITY                                                                                 ,Staff Payment,BA0000276068,9.00,
BIS,The Insolvency Service,05/06/2014,Travel and Subsistence,PEOPLE & CAPABILITY                                                                                 ,Staff Payment,BA0000276068,16.10,
BIS,The Insolvency Service,05/06/2014,Travel and Subsistence,BUSINESS SERVICES DIRECTORATE                                                                       ,Staff Payment,BA0000276126,79.44,
BIS,The Insolvency Service,05/06/2014,Travel and Subsistence,BUSINESS SERVICES DIRECTORATE                                                                       ,Staff Payment,BA0000276126,87.30,
BIS,The Insolvency Service,05/06/2014,Travel and Subsistence,BUSINESS SERVICES DIRECTORATE                                                                       ,Staff Payment,BA0000276126,162.90,
BIS,The Insolvency Service,05/06/2014,Travel and Subsistence,FINANCE AND COMMERCIAL                                                                              ,Staff Payment,BA0000276068,7.00,
BIS,The Insolvency Service,05/06/2014,Travel and Subsistence,INFORMATION TECHNOLOGY                                                                              ,Staff Payment,BA0000276068,64.80,
BIS,The Insolvency Service,05/06/2014,Travel and Subsistence,INVESTIGATIONS & ENFORCEMENT                                                                        ,Staff Payment,BA0000276068,6.30,
BIS,The Insolvency Service,05/06/2014,Travel and Subsistence,INVESTIGATIONS & ENFORCEMENT                                                                        ,Staff Payment,BA0000276068,36.90,
BIS,The Insolvency Service,05/06/2014,Travel and Subsistence,INVESTIGATIONS & ENFORCEMENT                                                                        ,Staff Payment,BA0000276068,48.60,
BIS,The Insolvency Service,05/06/2014,Travel and Subsistence,INVESTIGATIONS & ENFORCEMENT                                                                        ,Staff Payment,BA0000276068,22.50,
BIS,The Insolvency Service,05/06/2014,Travel and Subsistence,INVESTIGATIONS & ENFORCEMENT                                                                        ,Staff Payment,BA0000276068,17.50,
BIS,The Insolvency Service,05/06/2014,Travel and Subsistence,INVESTIGATIONS & ENFORCEMENT                                                                        ,Staff Payment,BA0000276068,8.00,
BIS,The Insolvency Service,05/06/2014,Travel and Subsistence,INVESTIGATIONS & ENFORCEMENT                                                                        ,Staff Payment,BA0000276126,7.60,
BIS,The Insolvency Service,05/06/2014,Travel and Subsistence,INVESTIGATIONS & ENFORCEMENT                                                                        ,Staff Payment,BA0000276126,62.10,
BIS,The Insolvency Service,05/06/2014,Travel and Subsistence,INVESTIGATIONS & ENFORCEMENT                                                                        ,Staff Payment,BA0000276126,8.90,
BIS,The Insolvency Service,05/06/2014,Travel and Subsistence,OFFICIAL RECEIVER SERVICES                                                                          ,Staff Payment,BA0000276126,7.10,
BIS,The Insolvency Service,05/06/2014,Travel and Subsistence,OFFICIAL RECEIVER SERVICES                                                                          ,Staff Payment,BA0000276126,44.00,
BIS,The Insolvency Service,05/06/2014,Travel and Subsistence,OFFICIAL RECEIVER SERVICES                                                                          ,Staff Payment,BA0000276068,3.50,
BIS,The Insolvency Service,05/06/2014,Travel and Subsistence,OFFICIAL RECEIVER SERVICES                                                                          ,Staff Payment,BA0000276068,9.10,
BIS,The Insolvency Service,05/06/2014,Travel and Subsistence,OFFICIAL RECEIVER SERVICES                                                                          ,Staff Payment,BA0000276068,6.00,
